Workbook

Sheet Disclaimer
B7: Welcome to the Single Public Service Pension Scheme Estimator for Primary Teachers!
B9: Our pension estimator is designed exclusively for teachers in the Single Public Service Pension Scheme
B10: (generally those who entered teaching from 1st January 2013 onwards).
B12: It has been developed by the independent actuarial advisors, Trident Consulting.
B13: It will help you to estimate what your retirement benefits should be.
B15: To estimate your retirement benefits, you will need the following:
C16: ü | D16: Recent payslip
C17: ü | D17: AVC Benefit Statement (if you are currently purchasing AVCs)
B19: Please note: This estimator is an illustration of your future retirement benefits under the Single Public Service Pension Scheme based on estimates of future experience. The benefits illustrated are not guaranteed. The document does not constitute financial advice. Your actual retirement benefits will depend on the Scheme rules as they apply to you on retirement.
B23: The data you input on this estimator will not be stored by the INTO or Cornmarket and will not be used for any other purpose.
B25: Important: Microsoft Excel with macros enabled is required to use this estimator, which should be run on a PC or Laptop. Please note, to save a copy of the estimation as a pdf you will need to have Adobe on your PC or Laptop.
B27: If you agree to these terms, please click here to proceed:

Sheet Pause

Sheet Inputs
D1: Salary Scale | J1: Other Allowances | M1: Purchase of Retirement Benefits Scheme: Purchase Rates | Q1: Early Retirement Reduction Factors | V1: Historic Accrued Entitlements
A2: Inputs | D2: Original Salary Scale | G2: Altered Scale- 4, 8 & 12 omitted | J2: Specified Allowances | M2: Age Next Birthday | N2: Cost of purchasing €1 Pension p.a. from age 66 | O2: Cost of purchasing €1 Lump-sum from age 66 | Q2: NRA | R2: Age at Early Retirement | S2: Pension Reduction Factor | T2: Lump Sum Reduction Factor | V2: Year of Joining | W2: Estimated Accrued Pension to 31/12/2020 | X2: Estimated Accrued Lump Sum to 31/12/2020
A3: Date of Birth | B3: 1992-05-06 | D3: Point | E3: € | G3: Point | H3: € | J3: Category | K3: € | M3: 66 | N3: 23.89 | O3: 1 | Q3: 66 | R3: 60 | S3: 0.81 | T3: 0.98 | V3: 2013 | W3: 1647.542699 | X3: 10652.21572
A4: Teacher Start Date | B4: 2013-09-01 | D4: 1 | E4: =37692 -> 37692 | G4: 1 | H4: =E4 -> 37692 | J4: Teachers with 35 years' service | K4: 2446 | M4: 65 | N4: 23.92 | O4: 1 | V4: 2014 | W4: 1403.175628 | X4: 9072.256215
A5: Current Point on Salary Scale | B5: 10 | D5: 2 | E5: =39235 -> 39235 | G5: =G4+1 -> 2 | H5: =E5 -> 39235 | M5: 64 | N5: 23.96 | O5: 1 | V5: 2015 | W5: 1184.275423 | X5: 7656.953165
A6: Current Full Time/Part-Time % | B6: 1 | D6: 3 | E6: =40996 -> 40996 | G6: 3 | H6: =E6 -> 40996 | M6: 63 | N6: 24 | O6: 0.99 | V6: 2016 | W6: 966.3755775 | X6: 6248.117958
A7: Current Value of AVCs | B7: 0 | D7: 4 | E7: =41800 -> 41800 | G7: =G6+2 -> 5 | H7: =E8 -> 42932 | M7: 62 | N7: 24.03 | O7: 0.99 | V7: 2017 | W7: 745.1130951 | X7: 4817.541563
A8: Post of Responsibility | B8: 0 | D8: 5 | E8: =42932 -> 42932 | G8: 6 | H8: =E9 -> 44299 | M8: 61 | N8: 24.07 | O8: 0.99 | V8: 2018 | W8: 513.6094435 | X8: 3320.750712
A9: Other Allowances | B9: 0 | D9: 6 | E9: =44299 -> 44299 | G9: 7 | H9: 45834 | M9: 60 | N9: 24.1 | O9: 0.99 | V9: 2019 | W9: 290.0586685 | X9: 1875.379322
D10: 7 | E10: =45834 -> 45834 | G10: =G9+2 -> 9 | H10: =E12 -> 48671 | M10: 59 | N10: 24.14 | O10: 0.98 | V10: 2020 | W10: 72.75216438 | X10: 470.3803731
A11: AVC entered (€ per fortnight increasing with salary p.a.) | B11: 0 | D11: 8 | E11: =47380 -> 47380 | G11: 10 | H11: =E13 -> 50977 | M11: 58 | N11: 24.17 | O11: 0.98
A12: AVC used (€ per fortnight increasing with salary p.a.) | B12: =IF(B11=0,40,B11) -> 40 | D12: 9 | E12: =48671 -> 48671 | G12: 11 | H12: 52410 | M12: 57 | N12: 24.21 | O12: 0.98
D13: 10 | E13: =50977 -> 50977 | G13: =G12+2 -> 13 | H13: =E16 -> 55828 | M13: 56 | N13: 24.25 | O13: 0.98
A14: Calculation Inputs | D14: 11 | E14: =52410 -> 52410 | G14: 14 | H14: =E17 -> 57546 | M14: 55 | N14: 24.28 | O14: 0.97
A15: Calculation Date | B15: 2020-12-31 | D15: 12 | E15: =54123 -> 54123 | G15: 15 | H15: =E18 -> 58981 | M15: 54 | N15: 24.32 | O15: 0.97
A16: Accrual Rate to Cap | B16: 0.0058 | D16: 13 | E16: =55828 -> 55828 | G16: 16 | H16: 60882 | M16: 53 | N16: 24.36 | O16: 0.97
A17: Accrual Rate over Cap | B17: 0.0125 | D17: 14 | E17: =57546 -> 57546 | G17: 17 | H17: 60882 | M17: 52 | N17: 24.39 | O17: 0.97
A18: Lump Sum accrual rate | B18: 0.0375 | D18: 15 | E18: =58981 -> 58981 | G18: 18 | H18: 60882 | M18: 51 | N18: 24.43 | O18: 0.96
A19: State Contributory Pension (weekly) | B19: =248.3 -> 248.3 | D19: 16 | E19: =60882 -> 60882 | G19: 19 | H19: 63504 | M19: 50 | N19: 24.46 | O19: 0.96
D20: 17 | E20: =60882 -> 60882 | G20: 20 | H20: 63504 | M20: 49 | N20: 24.5 | O20: 0.96
D21: 18 | E21: =60882 -> 60882 | G21: 21 | H21: 63504 | M21: 48 | N21: 24.54 | O21: 0.96
D22: 19 | E22: =63504 -> 63504 | G22: 22 | H22: 63504 | M22: 47 | N22: 24.57 | O22: 0.95
D23: 20 | E23: =63504 -> 63504 | G23: 23 | H23: 66968 | M23: 46 | N23: 24.61 | O23: 0.95
D24: 21 | E24: =63504 -> 63504 | G24: 24 | H24: 66968 | M24: 45 | N24: 24.65 | O24: 0.95
D25: 22 | E25: =63504 -> 63504 | G25: 25 | H25: 66968 | M25: 44 | N25: 24.68 | O25: 0.95
D26: 23 | E26: =66968 -> 66968 | G26: 26 | H26: 66968 | M26: 43 | N26: 24.72 | O26: 0.95
D27: 24 | E27: =66968 -> 66968 | G27: 27 | H27: 70795 | M27: 42 | N27: 24.76 | O27: 0.94
D28: 25 | E28: =66968 -> 66968 | G28: =G27 -> 27 | H28: =H27 -> 70795 | M28: 41 | N28: 24.79 | O28: 0.94
D29: 26 | E29: =66968 -> 66968 | G29: =G28 -> 27 | H29: =H28 -> 70795 | M29: 40 | N29: 24.83 | O29: 0.94
D30: 27 | E30: =70795 -> 70795 | G30: =G29 -> 27 | H30: 70795 | M30: 39 | N30: 24.87 | O30: 0.94
G31: =G30 -> 27 | H31: 70795 | M31: 38 | N31: 24.91 | O31: 0.93
G32: 27 | H32: 70795 | M32: 37 | N32: 24.94 | O32: 0.93
G33: 27 | H33: 70795 | M33: 36 | N33: 24.98 | O33: 0.93
G34: 27 | H34: 70795 | M34: 35 | N34: 25.02 | O34: 0.93
G35: 27 | H35: 70795 | M35: 34 | N35: 25.05 | O35: 0.92
G36: 27 | H36: 70795 | M36: 33 | N36: 25.09 | O36: 0.92
A37: Age | B37: 28 | C37: 29 | G37: 27 | H37: 70795 | M37: 32 | N37: 25.13 | O37: 0.92 | P37: 53 | Q37: 54 | R37: 55 | S37: 56 | T37: 57 | U37: 61 | V37: 62 | W37: 63 | X37: 64 | Y37: 65 | Z37: 66 | AA37: 67 | AB37: 68
A38: Scheme pension | B38: 0 | C38: 214.3274 | G38: 27 | H38: 70795 | M38: 31 | N38: 25.17 | O38: 0.92 | P38: 14943.86217 | Q38: 16116.92052 | R38: 17328.925 | S38: 18580.94018 | T38: 19874.05743 | U38: 25480.34772 | V38: 26996.3287 | W38: 28560.55935 | X38: 30174.33739 | Y38: 31838.99291 | Z38: 33555.88918 | AA38: 35326.4234 | AB38: 37152.02754
A39: Lump Sum | B39: 0 | C39: 1385.7375 | G39: 27 | H39: 70795 | M39: 30 | N39: 25.2 | O39: 0.92 | P39: 81487.11115 | Q39: 87249.01647 | R39: 93199.49133 | S39: 99343.66246 | T39: 105686.7852 | U39: 133158.575 | V39: 140580.0075 | W39: 148234.8026 | X39: 156129.2068 | Y39: 164269.622 | Z39: 172662.6091 | AA39: 181314.8922 | AB39: 190233.3623
G40: 27 | H40: 70795 | M40: 29 | N40: 25.24 | O40: 0.91
G41: 27 | H41: 70795 | M41: 28 | N41: 25.28 | O41: 0.91
G42: 27 | H42: 70795 | M42: 27 | N42: 25.32 | O42: 0.91
G43: 27 | H43: 70795 | M43: 26 | N43: 25.35 | O43: 0.91
G44: 27 | H44: 70795 | M44: 25 | N44: 25.39 | O44: 0.9
G45: 27 | H45: 70795 | M45: 24 | N45: 25.43 | O45: 0.9
G46: 27 | H46: 70795 | M46: 23 | N46: 25.47 | O46: 0.9
G47: 27 | H47: 70795 | M47: 22 | N47: 25.51 | O47: 0.9
G48: 27 | H48: 70795 | M48: 21 | N48: 25.54 | O48: 0.9
G49: 27 | H49: 70795
G50: 27 | H50: 70795
G51: 27 | H51: 70795
G52: 27 | H52: 70795
G53: 27 | H53: 70795
G54: 27 | H54: 70795
G55: 27 | H55: 70795
G56: 27 | H56: 70795
G57: 27 | H57: 70795
G58: 27 | H58: 70795
G59: 27 | H59: 70795
G60: 27 | H60: 70795
G61: 27 | H61: 70795
G62: 27 | H62: 70795
G63: 27 | H63: 70795
G64: 27 | H64: 70795
G65: 27 | H65: 70795
G66: 27 | H66: 70795
G67: 27 | H67: 70795
G68: 27 | H68: 70795
G69: 27 | H69: 70795
G70: 27 | H70: 70795
G71: 27 | H71: 70795
G72: 27 | H72: 70795
G73: 27 | H73: 70795
G74: 27 | H74: 70795
G75: 27 | H75: 70795
G76: 27 | H76: 70795
G77: 27 | H77: 70795

Sheet Assumptions
A1: Assumptions | D1: ILIM Balanced Fund | F1: =DATE(2020,1,31) -> 2020-01-31
A2: Benefit Deflation p.a. | B2: 0.015 | E2: Asset Split | F2: SAI Assumption | G2: Assumed Return
A3: Salary Inflation (above increments) p.a. | B3: 0.015 | D3: Equities | E3: 0.609 | F3: 0.045 | G3: =F3*E3 -> 0.027405
A4: State Pension Increases p.a. | B4: =B3 -> 0.015 | D4: Fixed Interest | E4: 0.313 | F4: =1% -> 0.01 | G4: =F4*E4 -> 0.00313
A5: Pre Retirement Investment Return p.a. > 9 years to NRA | B5: =G8 -> 0.03373 | D5: Property | E5: 0.071 | F5: =F3 -> 0.045 | G5: 0.003195
A6: Pre Retirement Investment Return p.a. <= 1 year to NRA | B6: 0 | D6: Cash | E6: 0.007 | F6: =0% -> 0 | G6: 0
A7: Pre Retirement Investment Return p.a. < 9 years to NRA | B7: Proportionately reducing from point 5 to point 6 above | D7: Alternatives | E7: 0 | G7: 0
A8: AMC | B8: 1% < €40k, 0.75% from €40k - €140k, 0.5% > €140k | D8: Total | E8: =SUM(E3:E7) -> 1 | G8: =SUM(G3:G7) -> 0.03373
A9: Allocation Rate | B9: 1
A10: AVC Set Up Fee Year 1 only | B10: =595 -> 595

Sheet Contributions & benefits at NRA
N1: Early Retirement Reduction Factors
K2: Current Date | L2: =TODAY() -> 2021-05-20 | O2: Pension | P2: Lump Sum
K3: NRA | L3: =66 -> 66 | N3: 60 | O3: =VLOOKUP($L$3,Inputs!$Q$3:$T$5,3,FALSE) -> 0.81 | P3: =VLOOKUP($L$3,Inputs!$Q$3:$T$5,4,FALSE) -> 0.98
K4: NRA less 1 Year | L4: =L3-1 -> 65
B5: Point on scale | C5: Salary Scale | D5: Posts of Responsibility Allowance - Multiplier 26.09 | E5: Other Allowances - Multiplier 26.09 | F5: Teachers with 34 years' service Allowance | G5: Total Pensionable Salary | H5: AVCs (fortnightly) | K5: Age | L5: Service | M5: Total Pensionable Salary with salary growth | N5: State pension | O5: 3.74* State pension | P5: Annual pension accrual | Q5: Annual lump sum accrual | R5: Cumulative pension | S5: Cumulative lump sum | T5: Existing AVC Fund | U5: Future AVCs (fortnightly) | X5: AMC | Y5: Investment Return | Z5: Assumed Investment Return (less AMC) | AB5: Age next birthday | AC5: Pension Purchase Rates | AD5: Lump Sum Purchase Rates
A6: Starting position | R6: =IFERROR(VLOOKUP(YEAR(Inputs!$B$4),Inputs!$V$3:$X$10,2,FALSE)*Inputs!$B$6,0) -> 1647.542699 | S6: =IFERROR(VLOOKUP(YEAR(Inputs!$B$4),Inputs!$V$3:$X$10,3,FALSE)*Inputs!$B$6,0) -> 10652.21572 | T6: =Inputs!B7 -> 0
B7: =Inputs!B5 -> 10 | C7: =VLOOKUP(B7,Inputs!$G$4:$H$77,2,FALSE) -> 50977 | D7: =Inputs!$B$8*26.09 -> 0 | E7: =Inputs!$B$9*26.09 -> 0 | F7: =IF(L7>=34,Inputs!$K$4,0) -> 0 | G7: =SUM(C7:F7) -> 50977 | H7: =Inputs!$B$12*26.09*((12-MONTH(TODAY()))/12)*Assumptions!$B$9*M7/$G$7 -> 608.7666667 | K7: =((MAX(YEARFRAC(Inputs!B3,Inputs!B15,0),YEARFRAC(Inputs!B3,Inputs!B4,0)))) -> 28.65277778 | L7: =((MAX(YEARFRAC(Inputs!B4,Inputs!B15,0),YEARFRAC(Inputs!B4,Inputs!B4,0)))) -> 7.333333333 | M7: =IFERROR((G7)*(1+Assumptions!$B$3)^(K7-K$7),0) -> 50977 | N7: =IFERROR(Inputs!$B$19*52.18*(1+Assumptions!$B$4)^(K7-K$7),0) -> 12956.294 | O7: =N7*3.74 -> 48456.53956 | P7: =IFERROR((MIN(M7,O7)*Inputs!$B$16+MAX(0,M7-O7)*Inputs!$B$17)*Inputs!$B$6,0) -> 312.5536849 | Q7: =IFERROR((M7*Inputs!$B$18*Inputs!$B$6),0) -> 1911.6375 | R7: =IFERROR(R6+P7*(K8-K7),0) -> 1756.068284 | S7: =IFERROR(S6+Q7*(K8-K7),0) -> 11315.97874 | T7: =T6*(1+Z6) -> 0 | U7: =H7-IF($T$6>0,0,Assumptions!$B$10) -> 13.76666667 | X7: =(0.01*MIN(T7+U7,40000)+0.0075*MIN(MAX(T7+U7-40000,0),100000)+0.005*(MAX(T7+U7-140000,0)))/(T7+U7) -> 0.01 | Y7: =MAX(IF(($L$4-K7)>=9,((1+Assumptions!$B$5)-1),((1+Assumptions!$B$5)-1)*($L$4-K7)/9+((1+Assumptions!$B$6)-1)*(1-($L$4-K7)/9)),0) -> 0.03373 | Z7: =((1+Y7)*(1-X7)-1)*((12-MONTH(TODAY()))/12) -> 0.01364574167 | AB7: =ROUNDUP(YEARFRAC(Inputs!B3,TODAY(),0),0) -> 30 | AC7: =VLOOKUP(AB7,Inputs!$M$3:$O$48,2,FALSE) -> 25.2 | AD7: =VLOOKUP(AB7,Inputs!$M$3:$O$48,3,FALSE) -> 0.92
B8: =MIN(IF(B7+1=4,5,IF(B7+1=8,9,IF(B7+1=12,13,B7+1))),Inputs!$G$31) -> 11 | C8: =VLOOKUP(B8,Inputs!$G$4:$H$77,2,FALSE) -> 52410 | D8: =Inputs!$B$8*26.09 -> 0 | E8: =Inputs!$B$9*26.09 -> 0 | F8: =IF(L8>=34,Inputs!$K$4,0) -> 0 | G8: =SUM(C8:F8) -> 52410 | H8: =Inputs!$B$12*26.09*Assumptions!$B$9*M8/$G$7 -> 1078.497419 | K8: =IFERROR(IF(K7>=$L$3,"",INT(K7)+1),"") -> 29 | L8: =L7+K8-K7 -> 7.680555556 | M8: =IFERROR((G8)*(1+Assumptions!$B$3)^(K8-K$7),0) -> 52681.64328 | N8: =IFERROR(Inputs!$B$19*52.18*(1+Assumptions!$B$4)^(K8-K$7),0) -> 13023.44703 | O8: =N8*3.74 -> 48707.69188 | P8: =IFERROR((MIN(M8,O8)*Inputs!$B$16+MAX(0,M8-O8)*Inputs!$B$17)*Inputs!$B$6,0) -> 332.1790053 | Q8: =IFERROR((M8*Inputs!$B$18*Inputs!$B$6),0) -> 1975.561623 | R8: =IFERROR(R7*(1+Assumptions!$B$2)+P8,0) -> 2114.588313 | S8: =IFERROR(S7*(1+Assumptions!$B$2)+Q8,0) -> 13461.28005 | T8: =T7*(1+Z7*(1-K7/K8)) -> 0 | U8: =U7*(1+$Z7)+H8*(1+$Z7)^0.5 -> 1099.785457 | X8: =(0.01*MIN(T8+U8,40000)+0.0075*MIN(MAX(T8+U8-40000,0),100000)+0.005*(MAX(T8+U8-140000,0)))/(T8+U8) -> 0.01 | Y8: =MAX(IF(($L$4-K8)>=9,((1+Assumptions!$B$5)-1),((1+Assumptions!$B$5)-1)*($L$4-K8)/9+((1+Assumptions!$B$6)-1)*(1-($L$4-K8)/9)),0) -> 0.03373 | Z8: =(1+Y8)*(1-X8)-1 -> 0.0233927
B9: =MIN(IF(B8+1=4,5,IF(B8+1=8,9,IF(B8+1=12,13,B8+1))),Inputs!$G$31) -> 13 | C9: =VLOOKUP(B9,Inputs!$G$4:$H$77,2,FALSE) -> 55828 | D9: =Inputs!$B$8*26.09 -> 0 | E9: =Inputs!$B$9*26.09 -> 0 | F9: =IF(L9>=34,Inputs!$K$4,0) -> 0 | G9: 55828 | H9: =Inputs!$B$12*26.09*Assumptions!$B$9*M9/$G$7 -> 1166.065812 | K9: =IFERROR(IF(K8>=$L$3,"",K8+1),"") -> 30 | L9: =L8+K9-K8 -> 8.680555556 | M9: =IFERROR((G9)*(1+Assumptions!$B$3)^(K9-K$7),0) -> 56959.1193 | N9: =IFERROR(Inputs!$B$19*52.18*(1+Assumptions!$B$4)^(K9-K$7),0) -> 13218.79873 | O9: 49438.30726 | P9: =IFERROR((MIN(M9,O9)*Inputs!$B$16+MAX(0,M9-O9)*Inputs!$B$17)*Inputs!$B$6,0) -> 380.7523326 | Q9: =IFERROR((M9*Inputs!$B$18*Inputs!$B$6),0) -> 2135.966974 | R9: =IFERROR(R8*(1+Assumptions!$B$2)+P9,0) -> 2527.059471 | S9: =IFERROR(S8*(1+Assumptions!$B$2)+Q9,0) -> 15799.16622 | T9: =T8*(1+Z8) -> 0 | U9: =U8*(1+$Z8)+H9*(1+$Z8)^0.5 -> 2305.138093 | X9: 0.01 | Y9: =MAX(IF(($L$4-K9)>=9,((1+Assumptions!$B$5)-1),((1+Assumptions!$B$5)-1)*($L$4-K9)/9+((1+Assumptions!$B$6)-1)*(1-($L$4-K9)/9)),0) -> 0.03373 | Z9: 0.0233927
B10: =MIN(IF(B9+1=4,5,IF(B9+1=8,9,IF(B9+1=12,13,B9+1))),Inputs!$G$31) -> 14 | C10: =VLOOKUP(B10,Inputs!$G$4:$H$77,2,FALSE) -> 57546 | D10: =Inputs!$B$8*26.09 -> 0 | E10: =Inputs!$B$9*26.09 -> 0 | F10: =IF(L10>=34,Inputs!$K$4,0) -> 0 | G10: 57546 | H10: =Inputs!$B$12*26.09*Assumptions!$B$9*M10/$G$7 -> 1219.978498 | K10: 31 | L10: 9.680555556 | M10: =IFERROR((G10)*(1+Assumptions!$B$3)^(K10-K$7),0) -> 59592.60624 | N10: =IFERROR(Inputs!$B$19*52.18*(1+Assumptions!$B$4)^(K10-K$7),0) -> 13417.08071 | O10: 50179.88187 | P10: =IFERROR((MIN(M10,O10)*Inputs!$B$16+MAX(0,M10-O10)*Inputs!$B$17)*Inputs!$B$6,0) -> 408.7023695 | Q10: =IFERROR((M10*Inputs!$B$18*Inputs!$B$6),0) -> 2234.722734 | R10: =IFERROR(R9*(1+Assumptions!$B$2)+P10,0) -> 2973.667732 | S10: =IFERROR(S9*(1+Assumptions!$B$2)+Q10,0) -> 18270.87645 | T10: =T9*(1+Z9) -> 0 | U10: =U9*(1+$Z9)+H10*(1+$Z9)^0.5 -> 3593.226802 | X10: 0.01 | Y10: =MAX(IF(($L$4-K10)>=9,((1+Assumptions!$B$5)-1),((1+Assumptions!$B$5)-1)*($L$4-K10)/9+((1+Assumptions!$B$6)-1)*(1-($L$4-K10)/9)),0) -> 0.03373 | Z10: 0.0233927
B11: =MIN(IF(B10+1=4,5,IF(B10+1=8,9,IF(B10+1=12,13,B10+1))),Inputs!$G$31) -> 15 | C11: =VLOOKUP(B11,Inputs!$G$4:$H$77,2,FALSE) -> 58981 | D11: =Inputs!$B$8*26.09 -> 0 | E11: =Inputs!$B$9*26.09 -> 0 | F11: =IF(L11>=34,Inputs!$K$4,0) -> 0 | G11: 58981 | H11: =Inputs!$B$12*26.09*Assumptions!$B$9*M11/$G$7 -> 1269.156589 | K11: 32 | L11: 10.68055556 | M11: =IFERROR((G11)*(1+Assumptions!$B$3)^(K11-K$7),0) -> 61994.82121 | N11: =IFERROR(Inputs!$B$19*52.18*(1+Assumptions!$B$4)^(K11-K$7),0) -> 13618.33692 | O11: 50932.5801 | P11: =IFERROR((MIN(M11,O11)*Inputs!$B$16+MAX(0,M11-O11)*Inputs!$B$17)*Inputs!$B$6,0) -> 433.6869785 | Q11: =IFERROR((M11*Inputs!$B$18*Inputs!$B$6),0) -> 2324.805796 | R11: =IFERROR(R10*(1+Assumptions!$B$2)+P11,0) -> 3451.959727 | S11: =IFERROR(S10*(1+Assumptions!$B$2)+Q11,0) -> 20869.74539 | T11: =T10*(1+Z10) -> 0 | U11: 4961.197355 | X11: 0.01 | Y11: =MAX(IF(($L$4-K11)>=9,((1+Assumptions!$B$5)-1),((1+Assumptions!$B$5)-1)*($L$4-K11)/9+((1+Assumptions!$B$6)-1)*(1-($L$4-K11)/9)),0) -> 0.03373 | Z11: 0.0233927
B12: =MIN(IF(B11+1=4,5,IF(B11+1=8,9,IF(B11+1=12,13,B11+1))),Inputs!$G$31) -> 16 | C12: =VLOOKUP(B12,Inputs!$G$4:$H$77,2,FALSE) -> 60882 | D12: =Inputs!$B$8*26.09 -> 0 | E12: =Inputs!$B$9*26.09 -> 0 | F12: =IF(L12>=34,Inputs!$K$4,0) -> 0 | G12: 60882 | H12: =Inputs!$B$12*26.09*Assumptions!$B$9*M12/$G$7 -> 1329.713353 | K12: 33 | L12: 11.68055556 | M12: =IFERROR((G12)*(1+Assumptions!$B$3)^(K12-K$7),0) -> 64952.85322 | N12: =IFERROR(Inputs!$B$19*52.18*(1+Assumptions!$B$4)^(K12-K$7),0) -> 13822.61198 | O12: 51696.5688 | P12: =IFERROR((MIN(M12,O12)*Inputs!$B$16+MAX(0,M12-O12)*Inputs!$B$17)*Inputs!$B$6,0) -> 465.5436543 | Q12: =IFERROR((M12*Inputs!$B$18*Inputs!$B$6),0) -> 2435.731996 | R12: =IFERROR(R11*(1+Assumptions!$B$2)+P12,0) -> 3969.282777 | S12: =IFERROR(S11*(1+Assumptions!$B$2)+Q12,0) -> 23618.52357 | T12: =T11*(1+Z11) -> 0 | U12: 6422.429395 | X12: 0.01 | Y12: =MAX(IF(($L$4-K12)>=9,((1+Assumptions!$B$5)-1),((1+Assumptions!$B$5)-1)*($L$4-K12)/9+((1+Assumptions!$B$6)-1)*(1-($L$4-K12)/9)),0) -> 0.03373 | Z12: 0.0233927
B13: =MIN(IF(B12+1=4,5,IF(B12+1=8,9,IF(B12+1=12,13,B12+1))),Inputs!$G$31) -> 17 | C13: =VLOOKUP(B13,Inputs!$G$4:$H$77,2,FALSE) -> 60882 | D13: =Inputs!$B$8*26.09 -> 0 | E13: =Inputs!$B$9*26.09 -> 0 | F13: =IF(L13>=34,Inputs!$K$4,0) -> 0 | G13: 60882 | H13: =Inputs!$B$12*26.09*Assumptions!$B$9*M13/$G$7 -> 1349.659054 | K13: 34 | L13: 12.68055556 | M13: =IFERROR((G13)*(1+Assumptions!$B$3)^(K13-K$7),0) -> 65927.14602 | N13: =IFERROR(Inputs!$B$19*52.18*(1+Assumptions!$B$4)^(K13-K$7),0) -> 14029.95116 | O13: 52472.01733 | P13: =IFERROR((MIN(M13,O13)*Inputs!$B$16+MAX(0,M13-O13)*Inputs!$B$17)*Inputs!$B$6,0) -> 472.5268091 | Q13: =IFERROR((M13*Inputs!$B$18*Inputs!$B$6),0) -> 2472.267976 | R13: =IFERROR(R12*(1+Assumptions!$B$2)+P13,0) -> 4501.348828 | S13: =IFERROR(S12*(1+Assumptions!$B$2)+Q13,0) -> 26445.0694 | T13: =T12*(1+Z12) -> 0 | U13: 7938.021242 | X13: 0.01 | Y13: =MAX(IF(($L$4-K13)>=9,((1+Assumptions!$B$5)-1),((1+Assumptions!$B$5)-1)*($L$4-K13)/9+((1+Assumptions!$B$6)-1)*(1-($L$4-K13)/9)),0) -> 0.03373 | Z13: 0.0233927
B14: =MIN(IF(B13+1=4,5,IF(B13+1=8,9,IF(B13+1=12,13,B13+1))),Inputs!$G$31) -> 18 | C14: =VLOOKUP(B14,Inputs!$G$4:$H$77,2,FALSE) -> 60882 | D14: =Inputs!$B$8*26.09 -> 0 | E14: =Inputs!$B$9*26.09 -> 0 | F14: =IF(L14>=34,Inputs!$K$4,0) -> 0 | G14: 60882 | H14: =Inputs!$B$12*26.09*Assumptions!$B$9*M14/$G$7 -> 1369.90394 | K14: 35 | L14: 13.68055556 | M14: =IFERROR((G14)*(1+Assumptions!$B$3)^(K14-K$7),0) -> 66916.05321 | N14: =IFERROR(Inputs!$B$19*52.18*(1+Assumptions!$B$4)^(K14-K$7),0) -> 14240.40042 | O14: 53259.09759 | P14: =IFERROR((MIN(M14,O14)*Inputs!$B$16+MAX(0,M14-O14)*Inputs!$B$17)*Inputs!$B$6,0) -> 479.6147112 | Q14: =IFERROR((M14*Inputs!$B$18*Inputs!$B$6),0) -> 2509.351995 | R14: =IFERROR(R13*(1+Assumptions!$B$2)+P14,0) -> 5048.483771 | S14: =IFERROR(S13*(1+Assumptions!$B$2)+Q14,0) -> 29351.09743 | T14: 0 | U14: 9509.547183 | X14: 0.01 | Y14: =MAX(IF(($L$4-K14)>=9,((1+Assumptions!$B$5)-1),((1+Assumptions!$B$5)-1)*($L$4-K14)/9+((1+Assumptions!$B$6)-1)*(1-($L$4-K14)/9)),0) -> 0.03373 | Z14: 0.0233927
B15: =MIN(IF(B14+1=4,5,IF(B14+1=8,9,IF(B14+1=12,13,B14+1))),Inputs!$G$31) -> 19 | C15: =VLOOKUP(B15,Inputs!$G$4:$H$77,2,FALSE) -> 63504 | D15: =Inputs!$B$8*26.09 -> 0 | E15: =Inputs!$B$9*26.09 -> 0 | F15: =IF(L15>=34,Inputs!$K$4,0) -> 0 | G15: 63504 | H15: =Inputs!$B$12*26.09*Assumptions!$B$9*M15/$G$7 -> 1450.335 | K15: 36 | L15: 14.68055556 | M15: =IFERROR((G15)*(1+Assumptions!$B$3)^(K15-K$7),0) -> 70844.89009 | N15: =IFERROR(Inputs!$B$19*52.18*(1+Assumptions!$B$4)^(K15-K$7),0) -> 14454.00643 | O15: 54057.98405 | P15: =IFERROR((MIN(M15,O15)*Inputs!$B$16+MAX(0,M15-O15)*Inputs!$B$17)*Inputs!$B$6,0) -> 523.372633 | Q15: =IFERROR((M15*Inputs!$B$18*Inputs!$B$6),0) -> 2656.683378 | R15: =IFERROR(R14*(1+Assumptions!$B$2)+P15,0) -> 5647.583661 | S15: =IFERROR(S14*(1+Assumptions!$B$2)+Q15,0) -> 32448.04727 | T15: 0 | U15: 11199.20173 | X15: 0.01 | Y15: =MAX(IF(($L$4-K15)>=9,((1+Assumptions!$B$5)-1),((1+Assumptions!$B$5)-1)*($L$4-K15)/9+((1+Assumptions!$B$6)-1)*(1-($L$4-K15)/9)),0) -> 0.03373 | Z15: 0.0233927
B16: =MIN(IF(B15+1=4,5,IF(B15+1=8,9,IF(B15+1=12,13,B15+1))),Inputs!$G$31) -> 20 | C16: =VLOOKUP(B16,Inputs!$G$4:$H$77,2,FALSE) -> 63504 | D16: =Inputs!$B$8*26.09 -> 0 | E16: =Inputs!$B$9*26.09 -> 0 | F16: =IF(L16>=34,Inputs!$K$4,0) -> 0 | G16: 63504 | H16: =Inputs!$B$12*26.09*Assumptions!$B$9*M16/$G$7 -> 1472.090025 | K16: 37 | L16: 15.68055556 | M16: =IFERROR((G16)*(1+Assumptions!$B$3)^(K16-K$7),0) -> 71907.56344 | N16: =IFERROR(Inputs!$B$19*52.18*(1+Assumptions!$B$4)^(K16-K$7),0) -> 14670.81653 | O16: 54868.85381 | P16: =IFERROR((MIN(M16,O16)*Inputs!$B$16+MAX(0,M16-O16)*Inputs!$B$17)*Inputs!$B$6,0) -> 531.2232225 | Q16: =IFERROR((M16*Inputs!$B$18*Inputs!$B$6),0) -> 2696.533629 | R16: =IFERROR(R15*(1+Assumptions!$B$2)+P16,0) -> 6263.520638 | S16: =IFERROR(S15*(1+Assumptions!$B$2)+Q16,0) -> 35631.30161 | T16: 0 | U16: 12950.38987 | X16: 0.01 | Y16: =MAX(IF(($L$4-K16)>=9,((1+Assumptions!$B$5)-1),((1+Assumptions!$B$5)-1)*($L$4-K16)/9+((1+Assumptions!$B$6)-1)*(1-($L$4-K16)/9)),0) -> 0.03373 | Z16: 0.0233927
B17: =MIN(IF(B16+1=4,5,IF(B16+1=8,9,IF(B16+1=12,13,B16+1))),Inputs!$G$31) -> 21 | C17: =VLOOKUP(B17,Inputs!$G$4:$H$77,2,FALSE) -> 63504 | D17: =Inputs!$B$8*26.09 -> 0 | E17: =Inputs!$B$9*26.09 -> 0 | F17: =IF(L17>=34,Inputs!$K$4,0) -> 0 | G17: 63504 | H17: =Inputs!$B$12*26.09*Assumptions!$B$9*M17/$G$7 -> 1494.171375 | K17: 38 | L17: 16.68055556 | M17: =IFERROR((G17)*(1+Assumptions!$B$3)^(K17-K$7),0) -> 72986.17689 | N17: =IFERROR(Inputs!$B$19*52.18*(1+Assumptions!$B$4)^(K17-K$7),0) -> 14890.87878 | O17: 55691.88662 | P17: =IFERROR((MIN(M17,O17)*Inputs!$B$16+MAX(0,M17-O17)*Inputs!$B$17)*Inputs!$B$6,0) -> 539.1915708 | Q17: =IFERROR((M17*Inputs!$B$18*Inputs!$B$6),0) -> 2736.981634 | R17: =IFERROR(R16*(1+Assumptions!$B$2)+P17,0) -> 6896.665019 | S17: =IFERROR(S16*(1+Assumptions!$B$2)+Q17,0) -> 38902.75277 | T17: 0 | U17: 14764.88115 | X17: 0.01 | Y17: =MAX(IF(($L$4-K17)>=9,((1+Assumptions!$B$5)-1),((1+Assumptions!$B$5)-1)*($L$4-K17)/9+((1+Assumptions!$B$6)-1)*(1-($L$4-K17)/9)),0) -> 0.03373 | Z17: 0.0233927
B18: =MIN(IF(B17+1=4,5,IF(B17+1=8,9,IF(B17+1=12,13,B17+1))),Inputs!$G$31) -> 22 | C18: =VLOOKUP(B18,Inputs!$G$4:$H$77,2,FALSE) -> 63504 | D18: =Inputs!$B$8*26.09 -> 0 | E18: =Inputs!$B$9*26.09 -> 0 | F18: =IF(L18>=34,Inputs!$K$4,0) -> 0 | G18: 63504 | H18: =Inputs!$B$12*26.09*Assumptions!$B$9*M18/$G$7 -> 1516.583946 | K18: 39 | L18: 17.68055556 | M18: =IFERROR((G18)*(1+Assumptions!$B$3)^(K18-K$7),0) -> 74080.96955 | N18: =IFERROR(Inputs!$B$19*52.18*(1+Assumptions!$B$4)^(K18-K$7),0) -> 15114.24196 | O18: 56527.26492 | P18: =IFERROR((MIN(M18,O18)*Inputs!$B$16+MAX(0,M18-O18)*Inputs!$B$17)*Inputs!$B$6,0) -> 547.2794444 | Q18: =IFERROR((M18*Inputs!$B$18*Inputs!$B$6),0) -> 2778.036358 | R18: =IFERROR(R17*(1+Assumptions!$B$2)+P18,0) -> 7547.394438 | S18: =IFERROR(S17*(1+Assumptions!$B$2)+Q18,0) -> 42264.33042 | T18: 0 | U18: 16644.49149 | X18: 0.01 | Y18: =MAX(IF(($L$4-K18)>=9,((1+Assumptions!$B$5)-1),((1+Assumptions!$B$5)-1)*($L$4-K18)/9+((1+Assumptions!$B$6)-1)*(1-($L$4-K18)/9)),0) -> 0.03373 | Z18: 0.0233927
B19: =MIN(IF(B18+1=4,5,IF(B18+1=8,9,IF(B18+1=12,13,B18+1))),Inputs!$G$31) -> 23 | C19: =VLOOKUP(B19,Inputs!$G$4:$H$77,2,FALSE) -> 66968 | D19: =Inputs!$B$8*26.09 -> 0 | E19: =Inputs!$B$9*26.09 -> 0 | F19: =IF(L19>=34,Inputs!$K$4,0) -> 0 | G19: 66968 | H19: =Inputs!$B$12*26.09*Assumptions!$B$9*M19/$G$7 -> 1623.299833 | K19: 40 | L19: 18.68055556 | M19: =IFERROR((G19)*(1+Assumptions!$B$3)^(K19-K$7),0) -> 79293.74818 | N19: =IFERROR(Inputs!$B$19*52.18*(1+Assumptions!$B$4)^(K19-K$7),0) -> 15340.95559 | O19: 57375.17389 | P19: =IFERROR((MIN(M19,O19)*Inputs!$B$16+MAX(0,M19-O19)*Inputs!$B$17)*Inputs!$B$6,0) -> 606.7581871 | Q19: =IFERROR((M19*Inputs!$B$18*Inputs!$B$6),0) -> 2973.515557 | R19: =IFERROR(R18*(1+Assumptions!$B$2)+P19,0) -> 8267.363542 | S19: =IFERROR(S18*(1+Assumptions!$B$2)+Q19,0) -> 45871.81093 | T19: 0 | U19: 18676.02785 | X19: 0.01 | Y19: =MAX(IF(($L$4-K19)>=9,((1+Assumptions!$B$5)-1),((1+Assumptions!$B$5)-1)*($L$4-K19)/9+((1+Assumptions!$B$6)-1)*(1-($L$4-K19)/9)),0) -> 0.03373 | Z19: 0.0233927
B20: =MIN(IF(B19+1=4,5,IF(B19+1=8,9,IF(B19+1=12,13,B19+1))),Inputs!$G$31) -> 24 | C20: =VLOOKUP(B20,Inputs!$G$4:$H$77,2,FALSE) -> 66968 | D20: =Inputs!$B$8*26.09 -> 0 | E20: =Inputs!$B$9*26.09 -> 0 | F20: =IF(L20>=34,Inputs!$K$4,0) -> 0 | G20: 66968 | H20: =Inputs!$B$12*26.09*Assumptions!$B$9*M20/$G$7 -> 1647.649331 | K20: 41 | L20: 19.68055556 | M20: =IFERROR((G20)*(1+Assumptions!$B$3)^(K20-K$7),0) -> 80483.1544 | N20: =IFERROR(Inputs!$B$19*52.18*(1+Assumptions!$B$4)^(K20-K$7),0) -> 15571.06992 | O20: 58235.8015 | P20: =IFERROR((MIN(M20,O20)*Inputs!$B$16+MAX(0,M20-O20)*Inputs!$B$17)*Inputs!$B$6,0) -> 615.8595599 | Q20: =IFERROR((M20*Inputs!$B$18*Inputs!$B$6),0) -> 3018.11829 | R20: =IFERROR(R19*(1+Assumptions!$B$2)+P20,0) -> 9007.233555 | S20: =IFERROR(S19*(1+Assumptions!$B$2)+Q20,0) -> 49578.00639 | T20: 0 | U20: 20779.71997 | X20: 0.01 | Y20: =MAX(IF(($L$4-K20)>=9,((1+Assumptions!$B$5)-1),((1+Assumptions!$B$5)-1)*($L$4-K20)/9+((1+Assumptions!$B$6)-1)*(1-($L$4-K20)/9)),0) -> 0.03373 | Z20: 0.0233927
B21: =MIN(IF(B20+1=4,5,IF(B20+1=8,9,IF(B20+1=12,13,B20+1))),Inputs!$G$31) -> 25 | C21: =VLOOKUP(B21,Inputs!$G$4:$H$77,2,FALSE) -> 66968 | D21: =Inputs!$B$8*26.09 -> 0 | E21: =Inputs!$B$9*26.09 -> 0 | F21: =IF(L21>=34,Inputs!$K$4,0) -> 0 | G21: 66968 | H21: =Inputs!$B$12*26.09*Assumptions!$B$9*M21/$G$7 -> 1672.364071 | K21: 42 | L21: 20.68055556 | M21: =IFERROR((G21)*(1+Assumptions!$B$3)^(K21-K$7),0) -> 81690.40171 | N21: =IFERROR(Inputs!$B$19*52.18*(1+Assumptions!$B$4)^(K21-K$7),0) -> 15804.63597 | O21: 59109.33853 | P21: =IFERROR((MIN(M21,O21)*Inputs!$B$16+MAX(0,M21-O21)*Inputs!$B$17)*Inputs!$B$6,0) -> 625.0974533 | Q21: =IFERROR((M21*Inputs!$B$18*Inputs!$B$6),0) -> 3063.390064 | R21: =IFERROR(R20*(1+Assumptions!$B$2)+P21,0) -> 9767.439512 | S21: =IFERROR(S20*(1+Assumptions!$B$2)+Q21,0) -> 53385.06655 | T21: 0 | U21: 22957.62528 | X21: 0.01 | Y21: =MAX(IF(($L$4-K21)>=9,((1+Assumptions!$B$5)-1),((1+Assumptions!$B$5)-1)*($L$4-K21)/9+((1+Assumptions!$B$6)-1)*(1-($L$4-K21)/9)),0) -> 0.03373 | Z21: 0.0233927
B22: =MIN(IF(B21+1=4,5,IF(B21+1=8,9,IF(B21+1=12,13,B21+1))),Inputs!$G$31) -> 26 | C22: =VLOOKUP(B22,Inputs!$G$4:$H$77,2,FALSE) -> 66968 | D22: =Inputs!$B$8*26.09 -> 0 | E22: =Inputs!$B$9*26.09 -> 0 | F22: =IF(L22>=34,Inputs!$K$4,0) -> 0 | G22: =SUM(C22:F22) -> 66968 | H22: =Inputs!$B$12*26.09*Assumptions!$B$9*M22/$G$7 -> 1697.449532 | K22: 43 | L22: 21.68055556 | M22: =IFERROR((G22)*(1+Assumptions!$B$3)^(K22-K$7),0) -> 82915.75774 | N22: =IFERROR(Inputs!$B$19*52.18*(1+Assumptions!$B$4)^(K22-K$7),0) -> 16041.70551 | O22: 59995.9786 | P22: =IFERROR((MIN(M22,O22)*Inputs!$B$16+MAX(0,M22-O22)*Inputs!$B$17)*Inputs!$B$6,0) -> 634.4739151 | Q22: =IFERROR((M22*Inputs!$B$18*Inputs!$B$6),0) -> 3109.340915 | R22: =IFERROR(R21*(1+Assumptions!$B$2)+P22,0) -> 10548.42502 | S22: =IFERROR(S21*(1+Assumptions!$B$2)+Q22,0) -> 57295.18346 | T22: 0 | U22: 25211.85484 | X22: 0.01 | Y22: =MAX(IF(($L$4-K22)>=9,((1+Assumptions!$B$5)-1),((1+Assumptions!$B$5)-1)*($L$4-K22)/9+((1+Assumptions!$B$6)-1)*(1-($L$4-K22)/9)),0) -> 0.03373 | Z22: 0.0233927
B23: =MIN(IF(B22+1=4,5,IF(B22+1=8,9,IF(B22+1=12,13,B22+1))),Inputs!$G$31) -> 27 | C23: =VLOOKUP(B23,Inputs!$G$4:$H$77,2,FALSE) -> 70795 | D23: =Inputs!$B$8*26.09 -> 0 | E23: =Inputs!$B$9*26.09 -> 0 | F23: =IF(L23>=34,Inputs!$K$4,0) -> 0 | G23: 70795 | H23: =Inputs!$B$12*26.09*Assumptions!$B$9*M23/$G$7 -> 1821.369963 | K23: 44 | L23: 22.68055556 | M23: =IFERROR((G23)*(1+Assumptions!$B$3)^(K23-K$7),0) -> 88968.93121 | N23: =IFERROR(Inputs!$B$19*52.18*(1+Assumptions!$B$4)^(K23-K$7),0) -> 16282.33109 | O23: 60895.91828 | P23: =IFERROR((MIN(M23,O23)*Inputs!$B$16+MAX(0,M23-O23)*Inputs!$B$17)*Inputs!$B$6,0) -> 704.1089876 | Q23: =IFERROR((M23*Inputs!$B$18*Inputs!$B$6),0) -> 3336.33492 | R23: =IFERROR(R22*(1+Assumptions!$B$2)+P23,0) -> 11410.76038 | S23: =IFERROR(S22*(1+Assumptions!$B$2)+Q23,0) -> 61490.94613 | T23: 0 | U23: 27644.1784 | X23: 0.01 | Y23: =MAX(IF(($L$4-K23)>=9,((1+Assumptions!$B$5)-1),((1+Assumptions!$B$5)-1)*($L$4-K23)/9+((1+Assumptions!$B$6)-1)*(1-($L$4-K23)/9)),0) -> 0.03373 | Z23: 0.0233927
B24: =MIN(IF(B23+1=4,5,IF(B23+1=8,9,IF(B23+1=12,13,B23+1))),Inputs!$G$31) -> 27 | C24: =VLOOKUP(B24,Inputs!$G$4:$H$77,2,FALSE) -> 70795 | D24: =Inputs!$B$8*26.09 -> 0 | E24: =Inputs!$B$9*26.09 -> 0 | F24: =IF(L24>=34,Inputs!$K$4,0) -> 0 | G24: 70795 | H24: =Inputs!$B$12*26.09*Assumptions!$B$9*M24/$G$7 -> 1848.690513 | K24: 45 | L24: 23.68055556 | M24: =IFERROR((G24)*(1+Assumptions!$B$3)^(K24-K$7),0) -> 90303.46518 | N24: =IFERROR(Inputs!$B$19*52.18*(1+Assumptions!$B$4)^(K24-K$7),0) -> 16526.56606 | O24: 61809.35706 | P24: =IFERROR((MIN(M24,O24)*Inputs!$B$16+MAX(0,M24-O24)*Inputs!$B$17)*Inputs!$B$6,0) -> 714.6706224 | Q24: =IFERROR((M24*Inputs!$B$18*Inputs!$B$6),0) -> 3386.379944 | R24: =IFERROR(R23*(1+Assumptions!$B$2)+P24,0) -> 12296.59241 | S24: =IFERROR(S23*(1+Assumptions!$B$2)+Q24,0) -> 65799.69027 | T24: 0 | U24: 30161.03881 | X24: 0.01 | Y24: =MAX(IF(($L$4-K24)>=9,((1+Assumptions!$B$5)-1),((1+Assumptions!$B$5)-1)*($L$4-K24)/9+((1+Assumptions!$B$6)-1)*(1-($L$4-K24)/9)),0) -> 0.03373 | Z24: 0.0233927
B25: =MIN(IF(B24+1=4,5,IF(B24+1=8,9,IF(B24+1=12,13,B24+1))),Inputs!$G$31) -> 27 | C25: =VLOOKUP(B25,Inputs!$G$4:$H$77,2,FALSE) -> 70795 | D25: =Inputs!$B$8*26.09 -> 0 | E25: =Inputs!$B$9*26.09 -> 0 | F25: =IF(L25>=34,Inputs!$K$4,0) -> 0 | G25: 70795 | H25: =Inputs!$B$12*26.09*Assumptions!$B$9*M25/$G$7 -> 1876.42087 | K25: 46 | L25: 24.68055556 | M25: =IFERROR((G25)*(1+Assumptions!$B$3)^(K25-K$7),0) -> 91658.01716 | N25: =IFERROR(Inputs!$B$19*52.18*(1+Assumptions!$B$4)^(K25-K$7),0) -> 16774.46455 | O25: 62736.49741 | P25: =IFERROR((MIN(M25,O25)*Inputs!$B$16+MAX(0,M25-O25)*Inputs!$B$17)*Inputs!$B$6,0) -> 725.3906818 | Q25: =IFERROR((M25*Inputs!$B$18*Inputs!$B$6),0) -> 3437.175643 | R25: =IFERROR(R24*(1+Assumptions!$B$2)+P25,0) -> 13206.43198 | S25: =IFERROR(S24*(1+Assumptions!$B$2)+Q25,0) -> 70223.86127 | T25: 0 | U25: 32764.82822 | X25: 0.01 | Y25: =MAX(IF(($L$4-K25)>=9,((1+Assumptions!$B$5)-1),((1+Assumptions!$B$5)-1)*($L$4-K25)/9+((1+Assumptions!$B$6)-1)*(1-($L$4-K25)/9)),0) -> 0.03373 | Z25: 0.0233927
B26: =MIN(IF(B25+1=4,5,IF(B25+1=8,9,IF(B25+1=12,13,B25+1))),Inputs!$G$31) -> 27 | C26: =VLOOKUP(B26,Inputs!$G$4:$H$77,2,FALSE) -> 70795 | D26: =Inputs!$B$8*26.09 -> 0 | E26: =Inputs!$B$9*26.09 -> 0 | F26: =IF(L26>=34,Inputs!$K$4,0) -> 0 | G26: 70795 | H26: =Inputs!$B$12*26.09*Assumptions!$B$9*M26/$G$7 -> 1904.567183 | K26: 47 | L26: 25.68055556 | M26: =IFERROR((G26)*(1+Assumptions!$B$3)^(K26-K$7),0) -> 93032.88741 | N26: =IFERROR(Inputs!$B$19*52.18*(1+Assumptions!$B$4)^(K26-K$7),0) -> 17026.08152 | O26: 63677.54487 | P26: =IFERROR((MIN(M26,O26)*Inputs!$B$16+MAX(0,M26-O26)*Inputs!$B$17)*Inputs!$B$6,0) -> 736.271542 | Q26: =IFERROR((M26*Inputs!$B$18*Inputs!$B$6),0) -> 3488.733278 | R26: =IFERROR(R25*(1+Assumptions!$B$2)+P26,0) -> 14140.8 | S26: =IFERROR(S25*(1+Assumptions!$B$2)+Q26,0) -> 74765.95246 | T26: 0 | U26: 35458.00091 | X26: 0.01 | Y26: =MAX(IF(($L$4-K26)>=9,((1+Assumptions!$B$5)-1),((1+Assumptions!$B$5)-1)*($L$4-K26)/9+((1+Assumptions!$B$6)-1)*(1-($L$4-K26)/9)),0) -> 0.03373 | Z26: 0.0233927
B27: =MIN(IF(B26+1=4,5,IF(B26+1=8,9,IF(B26+1=12,13,B26+1))),Inputs!$G$31) -> 27 | C27: =VLOOKUP(B27,Inputs!$G$4:$H$77,2,FALSE) -> 70795 | D27: =Inputs!$B$8*26.09 -> 0 | E27: =Inputs!$B$9*26.09 -> 0 | F27: =IF(L27>=34,Inputs!$K$4,0) -> 0 | G27: 70795 | H27: =Inputs!$B$12*26.09*Assumptions!$B$9*M27/$G$7 -> 1933.135691 | K27: 48 | L27: 26.68055556 | M27: =IFERROR((G27)*(1+Assumptions!$B$3)^(K27-K$7),0) -> 94428.38072 | N27: =IFERROR(Inputs!$B$19*52.18*(1+Assumptions!$B$4)^(K27-K$7),0) -> 17281.47274 | O27: 64632.70805 | P27: =IFERROR((MIN(M27,O27)*Inputs!$B$16+MAX(0,M27-O27)*Inputs!$B$17)*Inputs!$B$6,0) -> 747.3156151 | Q27: =IFERROR((M27*Inputs!$B$18*Inputs!$B$6),0) -> 3541.064277 | R27: =IFERROR(R26*(1+Assumptions!$B$2)+P27,0) -> 15100.22762 | S27: =IFERROR(S26*(1+Assumptions!$B$2)+Q27,0) -> 79428.50603 | T27: 0 | U27: 38243.0749 | X27: 0.01 | Y27: =MAX(IF(($L$4-K27)>=9,((1+Assumptions!$B$5)-1),((1+Assumptions!$B$5)-1)*($L$4-K27)/9+((1+Assumptions!$B$6)-1)*(1-($L$4-K27)/9)),0) -> 0.03373 | Z27: 0.0233927
B28: =MIN(IF(B27+1=4,5,IF(B27+1=8,9,IF(B27+1=12,13,B27+1))),Inputs!$G$31) -> 27 | C28: =VLOOKUP(B28,Inputs!$G$4:$H$77,2,FALSE) -> 70795 | D28: =Inputs!$B$8*26.09 -> 0 | E28: =Inputs!$B$9*26.09 -> 0 | F28: =IF(L28>=34,Inputs!$K$4,0) -> 0 | G28: 70795 | H28: =Inputs!$B$12*26.09*Assumptions!$B$9*M28/$G$7 -> 1962.132726 | K28: 49 | L28: 27.68055556 | M28: =IFERROR((G28)*(1+Assumptions!$B$3)^(K28-K$7),0) -> 95844.80644 | N28: =IFERROR(Inputs!$B$19*52.18*(1+Assumptions!$B$4)^(K28-K$7),0) -> 17540.69483 | O28: 65602.19867 | P28: =IFERROR((MIN(M28,O28)*Inputs!$B$16+MAX(0,M28-O28)*Inputs!$B$17)*Inputs!$B$6,0) -> 758.5253494 | Q28: =IFERROR((M28*Inputs!$B$18*Inputs!$B$6),0) -> 3594.180241 | R28: =IFERROR(R27*(1+Assumptions!$B$2)+P28,0) -> 16085.25638 | S28: =IFERROR(S27*(1+Assumptions!$B$2)+Q28,0) -> 84214.11386 | T28: 0 | U28: 41122.63353 | X28: 0.009931750873 | Y28: =MAX(IF(($L$4-K28)>=9,((1+Assumptions!$B$5)-1),((1+Assumptions!$B$5)-1)*($L$4-K28)/9+((1+Assumptions!$B$6)-1)*(1-($L$4-K28)/9)),0) -> 0.03373 | Z28: 0.02346325117
B29: =MIN(IF(B28+1=4,5,IF(B28+1=8,9,IF(B28+1=12,13,B28+1))),Inputs!$G$31) -> 27 | C29: =VLOOKUP(B29,Inputs!$G$4:$H$77,2,FALSE) -> 70795 | D29: =Inputs!$B$8*26.09 -> 0 | E29: =Inputs!$B$9*26.09 -> 0 | F29: =IF(L29>=34,Inputs!$K$4,0) -> 0 | G29: 70795 | H29: =Inputs!$B$12*26.09*Assumptions!$B$9*M29/$G$7 -> 1991.564717 | K29: 50 | L29: 28.68055556 | M29: =IFERROR((G29)*(1+Assumptions!$B$3)^(K29-K$7),0) -> 97282.47853 | N29: =IFERROR(Inputs!$B$19*52.18*(1+Assumptions!$B$4)^(K29-K$7),0) -> 17803.80525 | O29: 66586.23165 | P29: =IFERROR((MIN(M29,O29)*Inputs!$B$16+MAX(0,M29-O29)*Inputs!$B$17)*Inputs!$B$6,0) -> 769.9032296 | Q29: =IFERROR((M29*Inputs!$B$18*Inputs!$B$6),0) -> 3648.092945 | R29: =IFERROR(R28*(1+Assumptions!$B$2)+P29,0) -> 17096.43845 | S29: =IFERROR(S28*(1+Assumptions!$B$2)+Q29,0) -> 89125.41851 | T29: 0 | U29: 44102.29776 | X29: 0.009767455554 | Y29: =MAX(IF(($L$4-K29)>=9,((1+Assumptions!$B$5)-1),((1+Assumptions!$B$5)-1)*($L$4-K29)/9+((1+Assumptions!$B$6)-1)*(1-($L$4-K29)/9)),0) -> 0.03373 | Z29: 0.02363308817
B30: =MIN(IF(B29+1=4,5,IF(B29+1=8,9,IF(B29+1=12,13,B29+1))),Inputs!$G$31) -> 27 | C30: =VLOOKUP(B30,Inputs!$G$4:$H$77,2,FALSE) -> 70795 | D30: =Inputs!$B$8*26.09 -> 0 | E30: =Inputs!$B$9*26.09 -> 0 | F30: =IF(L30>=34,Inputs!$K$4,0) -> 0 | G30: 70795 | H30: =Inputs!$B$12*26.09*Assumptions!$B$9*M30/$G$7 -> 2021.438188 | K30: 51 | L30: 29.68055556 | M30: =IFERROR((G30)*(1+Assumptions!$B$3)^(K30-K$7),0) -> 98741.71571 | N30: =IFERROR(Inputs!$B$19*52.18*(1+Assumptions!$B$4)^(K30-K$7),0) -> 18070.86233 | O30: 67585.02512 | P30: =IFERROR((MIN(M30,O30)*Inputs!$B$16+MAX(0,M30-O30)*Inputs!$B$17)*Inputs!$B$6,0) -> 781.4517781 | Q30: =IFERROR((M30*Inputs!$B$18*Inputs!$B$6),0) -> 3702.814339 | R30: =IFERROR(R29*(1+Assumptions!$B$2)+P30,0) -> 18134.33681 | S30: =IFERROR(S29*(1+Assumptions!$B$2)+Q30,0) -> 94165.11413 | T30: 0 | U30: 47189.75636 | X30: 0.009619103969 | Y30: =MAX(IF(($L$4-K30)>=9,((1+Assumptions!$B$5)-1),((1+Assumptions!$B$5)-1)*($L$4-K30)/9+((1+Assumptions!$B$6)-1)*(1-($L$4-K30)/9)),0) -> 0.03373 | Z30: 0.02378644365
B31: =MIN(IF(B30+1=4,5,IF(B30+1=8,9,IF(B30+1=12,13,B30+1))),Inputs!$G$31) -> 27 | C31: =VLOOKUP(B31,Inputs!$G$4:$H$77,2,FALSE) -> 70795 | D31: =Inputs!$B$8*26.09 -> 0 | E31: =Inputs!$B$9*26.09 -> 0 | F31: =IF(L31>=34,Inputs!$K$4,0) -> 0 | G31: 70795 | H31: =Inputs!$B$12*26.09*Assumptions!$B$9*M31/$G$7 -> 2051.759761 | K31: 52 | L31: 30.68055556 | M31: =IFERROR((G31)*(1+Assumptions!$B$3)^(K31-K$7),0) -> 100222.8414 | N31: =IFERROR(Inputs!$B$19*52.18*(1+Assumptions!$B$4)^(K31-K$7),0) -> 18341.92527 | O31: 68598.8005 | P31: =IFERROR((MIN(M31,O31)*Inputs!$B$16+MAX(0,M31-O31)*Inputs!$B$17)*Inputs!$B$6,0) -> 793.1735547 | Q31: =IFERROR((M31*Inputs!$B$18*Inputs!$B$6),0) -> 3758.356554 | R31: =IFERROR(R30*(1+Assumptions!$B$2)+P31,0) -> 19199.52542 | S31: =IFERROR(S30*(1+Assumptions!$B$2)+Q31,0) -> 99335.9474 | T31: 0 | U31: 50388.25123 | X31: 0.009484589613 | Y31: =MAX(IF(($L$4-K31)>=9,((1+Assumptions!$B$5)-1),((1+Assumptions!$B$5)-1)*($L$4-K31)/9+((1+Assumptions!$B$6)-1)*(1-($L$4-K31)/9)),0) -> 0.03373 | Z31: 0.02392549518
B32: =MIN(IF(B31+1=4,5,IF(B31+1=8,9,IF(B31+1=12,13,B31+1))),Inputs!$G$31) -> 27 | C32: =VLOOKUP(B32,Inputs!$G$4:$H$77,2,FALSE) -> 70795 | D32: =Inputs!$B$8*26.09 -> 0 | E32: =Inputs!$B$9*26.09 -> 0 | F32: =IF(L32>=34,Inputs!$K$4,0) -> 0 | G32: 70795 | H32: =Inputs!$B$12*26.09*Assumptions!$B$9*M32/$G$7 -> 2082.536157 | K32: 53 | L32: 31.68055556 | M32: =IFERROR((G32)*(1+Assumptions!$B$3)^(K32-K$7),0) -> 101726.1841 | N32: =IFERROR(Inputs!$B$19*52.18*(1+Assumptions!$B$4)^(K32-K$7),0) -> 18617.05415 | O32: 69627.78251 | P32: =IFERROR((MIN(M32,O32)*Inputs!$B$16+MAX(0,M32-O32)*Inputs!$B$17)*Inputs!$B$6,0) -> 805.071158 | Q32: =IFERROR((M32*Inputs!$B$18*Inputs!$B$6),0) -> 3814.731903 | R32: =IFERROR(R31*(1+Assumptions!$B$2)+P32,0) -> 20292.58946 | S32: =IFERROR(S31*(1+Assumptions!$B$2)+Q32,0) -> 104640.7185 | T32: 0 | U32: 53701.11685 | X32: 0.009362158664 | Y32: =MAX(IF(($L$4-K32)>=9,((1+Assumptions!$B$5)-1),((1+Assumptions!$B$5)-1)*($L$4-K32)/9+((1+Assumptions!$B$6)-1)*(1-($L$4-K32)/9)),0) -> 0.03373 | Z32: 0.02405205572
B33: =MIN(IF(B32+1=4,5,IF(B32+1=8,9,IF(B32+1=12,13,B32+1))),Inputs!$G$31) -> 27 | C33: =VLOOKUP(B33,Inputs!$G$4:$H$77,2,FALSE) -> 70795 | D33: =Inputs!$B$8*26.09 -> 0 | E33: =Inputs!$B$9*26.09 -> 0 | F33: =IF(L33>=34,Inputs!$K$4,0) -> 0 | G33: 70795 | H33: =Inputs!$B$12*26.09*Assumptions!$B$9*M33/$G$7 -> 2113.7742 | K33: 54 | L33: 32.68055556 | M33: =IFERROR((G33)*(1+Assumptions!$B$3)^(K33-K$7),0) -> 103252.0768 | N33: =IFERROR(Inputs!$B$19*52.18*(1+Assumptions!$B$4)^(K33-K$7),0) -> 18896.30996 | O33: 70672.19924 | P33: =IFERROR((MIN(M33,O33)*Inputs!$B$16+MAX(0,M33-O33)*Inputs!$B$17)*Inputs!$B$6,0) -> 817.1472254 | Q33: =IFERROR((M33*Inputs!$B$18*Inputs!$B$6),0) -> 3871.952881 | R33: =IFERROR(R32*(1+Assumptions!$B$2)+P33,0) -> 21414.12552 | S33: =IFERROR(S32*(1+Assumptions!$B$2)+Q33,0) -> 110082.2822 | T33: 0 | U33: 57131.78257 | X33: 0.009250339225 | Y33: =MAX(IF(($L$4-K33)>=9,((1+Assumptions!$B$5)-1),((1+Assumptions!$B$5)-1)*($L$4-K33)/9+((1+Assumptions!$B$6)-1)*(1-($L$4-K33)/9)),0) -> 0.03373 | Z33: 0.02416764683
B34: =MIN(IF(B33+1=4,5,IF(B33+1=8,9,IF(B33+1=12,13,B33+1))),Inputs!$G$31) -> 27 | C34: =VLOOKUP(B34,Inputs!$G$4:$H$77,2,FALSE) -> 70795 | D34: =Inputs!$B$8*26.09 -> 0 | E34: =Inputs!$B$9*26.09 -> 0 | F34: =IF(L34>=34,Inputs!$K$4,0) -> 0 | G34: 70795 | H34: =Inputs!$B$12*26.09*Assumptions!$B$9*M34/$G$7 -> 2145.480813 | K34: 55 | L34: =L33+K34-K33 -> 33.68055556 | M34: =IFERROR((G34)*(1+Assumptions!$B$3)^(K34-K$7),0) -> 104800.858 | N34: =IFERROR(Inputs!$B$19*52.18*(1+Assumptions!$B$4)^(K34-K$7),0) -> 19179.75461 | O34: 71732.28223 | P34: =IFERROR((MIN(M34,O34)*Inputs!$B$16+MAX(0,M34-O34)*Inputs!$B$17)*Inputs!$B$6,0) -> 829.4044338 | Q34: =IFERROR((M34*Inputs!$B$18*Inputs!$B$6),0) -> 3930.032174 | R34: =IFERROR(R33*(1+Assumptions!$B$2)+P34,0) -> 22564.74184 | S34: =IFERROR(S33*(1+Assumptions!$B$2)+Q34,0) -> 115663.5486 | T34: 0 | U34: 60683.77496 | X34: 0.009147886936 | Y34: =MAX(IF(($L$4-K34)>=9,((1+Assumptions!$B$5)-1),((1+Assumptions!$B$5)-1)*($L$4-K34)/9+((1+Assumptions!$B$6)-1)*(1-($L$4-K34)/9)),0) -> 0.03373 | Z34: 0.02427355484
B35: =MIN(IF(B34+1=4,5,IF(B34+1=8,9,IF(B34+1=12,13,B34+1))),Inputs!$G$31) -> 27 | C35: =VLOOKUP(B35,Inputs!$G$4:$H$77,2,FALSE) -> 70795 | D35: =Inputs!$B$8*26.09 -> 0 | E35: =Inputs!$B$9*26.09 -> 0 | F35: =IF(L35>=34,Inputs!$K$4,0) -> 2446 | G35: =SUM(C35:F35) -> 73241 | H35: =Inputs!$B$12*26.09*Assumptions!$B$9*M35/$G$7 -> 2252.90229 | K35: 56 | L35: 34.68055556 | M35: =IFERROR((G35)*(1+Assumptions!$B$3)^(K35-K$7),0) -> 110048.1027 | N35: =IFERROR(Inputs!$B$19*52.18*(1+Assumptions!$B$4)^(K35-K$7),0) -> 19467.45093 | O35: 72808.26647 | P35: =IFERROR((MIN(M35,O35)*Inputs!$B$16+MAX(0,M35-O35)*Inputs!$B$17)*Inputs!$B$6,0) -> 887.785899 | Q35: =IFERROR((M35*Inputs!$B$18*Inputs!$B$6),0) -> 4126.803853 | R35: =IFERROR(R34*(1+Assumptions!$B$2)+P35,0) -> 23790.99887 | S35: =IFERROR(S34*(1+Assumptions!$B$2)+Q35,0) -> 121525.3057 | T35: 0 | U35: 64436.86722 | X35: 0.009051906607 | Y35: =MAX(IF(($L$4-K35)>=9,((1+Assumptions!$B$5)-1),((1+Assumptions!$B$5)-1)*($L$4-K35)/9+((1+Assumptions!$B$6)-1)*(1-($L$4-K35)/9)),0) -> 0.03373 | Z35: 0.02437277258
B36: =MIN(IF(B35+1=4,5,IF(B35+1=8,9,IF(B35+1=12,13,B35+1))),Inputs!$G$31) -> 27 | C36: =VLOOKUP(B36,Inputs!$G$4:$H$77,2,FALSE) -> 70795 | D36: =Inputs!$B$8*26.09 -> 0 | E36: =Inputs!$B$9*26.09 -> 0 | F36: =IF(L36>=34,Inputs!$K$4,0) -> 2446 | G36: =SUM(C36:F36) -> 73241 | H36: =Inputs!$B$12*26.09*Assumptions!$B$9*M36/$G$7 -> 2286.695824 | K36: 57 | L36: 35.68055556 | M36: =IFERROR((G36)*(1+Assumptions!$B$3)^(K36-K$7),0) -> 111698.8243 | N36: =IFERROR(Inputs!$B$19*52.18*(1+Assumptions!$B$4)^(K36-K$7),0) -> 19759.46269 | O36: 73900.39046 | P36: =IFERROR((MIN(M36,O36)*Inputs!$B$16+MAX(0,M36-O36)*Inputs!$B$17)*Inputs!$B$6,0) -> 901.1026875 | Q36: =IFERROR((M36*Inputs!$B$18*Inputs!$B$6),0) -> 4188.705911 | R36: =IFERROR(R35*(1+Assumptions!$B$2)+P36,0) -> 25048.96654 | S36: =IFERROR(S35*(1+Assumptions!$B$2)+Q36,0) -> 127536.8912 | T36: 0 | U36: 68321.76695 | X36: 0.00896366238 | Y36: =MAX(IF(($L$4-K36)>=9,((1+Assumptions!$B$5)-1),((1+Assumptions!$B$5)-1)*($L$4-K36)/9+((1+Assumptions!$B$6)-1)*(1-($L$4-K36)/9)),0) -> 0.02998222222 | Z36: 0.02074980933
B37: =MIN(IF(B36+1=4,5,IF(B36+1=8,9,IF(B36+1=12,13,B36+1))),Inputs!$G$31) -> 27 | C37: =VLOOKUP(B37,Inputs!$G$4:$H$77,2,FALSE) -> 70795 | D37: =Inputs!$B$8*26.09 -> 0 | E37: =Inputs!$B$9*26.09 -> 0 | F37: =IF(L37>=34,Inputs!$K$4,0) -> 2446 | G37: =SUM(C37:F37) -> 73241 | H37: =Inputs!$B$12*26.09*Assumptions!$B$9*M37/$G$7 -> 2320.996261 | K37: 58 | L37: 36.68055556 | M37: =IFERROR((G37)*(1+Assumptions!$B$3)^(K37-K$7),0) -> 113374.3067 | N37: =IFERROR(Inputs!$B$19*52.18*(1+Assumptions!$B$4)^(K37-K$7),0) -> 20055.85463 | O37: 75008.89632 | P37: =IFERROR((MIN(M37,O37)*Inputs!$B$16+MAX(0,M37-O37)*Inputs!$B$17)*Inputs!$B$6,0) -> 914.6192278 | Q37: =IFERROR((M37*Inputs!$B$18*Inputs!$B$6),0) -> 4251.536499 | R37: =IFERROR(R36*(1+Assumptions!$B$2)+P37,0) -> 26339.32026 | S37: =IFERROR(S36*(1+Assumptions!$B$2)+Q37,0) -> 133701.481 | T37: 0 | U37: 72084.38333 | X37: 0.008887263029 | Y37: =MAX(IF(($L$4-K37)>=9,((1+Assumptions!$B$5)-1),((1+Assumptions!$B$5)-1)*($L$4-K37)/9+((1+Assumptions!$B$6)-1)*(1-($L$4-K37)/9)),0) -> 0.02623444444 | Z37: 0.01711402901
B38: =MIN(IF(B37+1=4,5,IF(B37+1=8,9,IF(B37+1=12,13,B37+1))),Inputs!$G$31) -> 27 | C38: =VLOOKUP(B38,Inputs!$G$4:$H$77,2,FALSE) -> 70795 | D38: =Inputs!$B$8*26.09 -> 0 | E38: =Inputs!$B$9*26.09 -> 0 | F38: =IF(L38>=34,Inputs!$K$4,0) -> 2446 | G38: =SUM(C38:F38) -> 73241 | H38: =Inputs!$B$12*26.09*Assumptions!$B$9*M38/$G$7 -> 2355.811205 | K38: 59 | L38: 37.68055556 | M38: =IFERROR((G38)*(1+Assumptions!$B$3)^(K38-K$7),0) -> 115074.9213 | N38: =IFERROR(Inputs!$B$19*52.18*(1+Assumptions!$B$4)^(K38-K$7),0) -> 20356.69245 | O38: 76134.02976 | P38: =IFERROR((MIN(M38,O38)*Inputs!$B$16+MAX(0,M38-O38)*Inputs!$B$17)*Inputs!$B$6,0) -> 928.3385162 | Q38: =IFERROR((M38*Inputs!$B$18*Inputs!$B$6),0) -> 4315.309547 | R38: =IFERROR(R37*(1+Assumptions!$B$2)+P38,0) -> 27662.74858 | S38: =IFERROR(S37*(1+Assumptions!$B$2)+Q38,0) -> 140022.3128 | T38: 0 | U38: 75693.92196 | X38: 0.008821110036 | Y38: =MAX(IF(($L$4-K38)>=9,((1+Assumptions!$B$5)-1),((1+Assumptions!$B$5)-1)*($L$4-K38)/9+((1+Assumptions!$B$6)-1)*(1-($L$4-K38)/9)),0) -> 0.02248666667 | Z38: 0.01346719927
B39: =MIN(IF(B38+1=4,5,IF(B38+1=8,9,IF(B38+1=12,13,B38+1))),Inputs!$G$31) -> 27 | C39: =VLOOKUP(B39,Inputs!$G$4:$H$77,2,FALSE) -> 70795 | D39: =Inputs!$B$8*26.09 -> 0 | E39: =Inputs!$B$9*26.09 -> 0 | F39: =IF(L39>=34,Inputs!$K$4,0) -> 2446 | G39: 73241 | H39: =Inputs!$B$12*26.09*Assumptions!$B$9*M39/$G$7 -> 2391.148373 | K39: 60 | L39: 38.68055556 | M39: =IFERROR((G39)*(1+Assumptions!$B$3)^(K39-K$7),0) -> 116801.0451 | N39: =IFERROR(Inputs!$B$19*52.18*(1+Assumptions!$B$4)^(K39-K$7),0) -> 20662.04284 | O39: 77276.04021 | P39: =IFERROR((MIN(M39,O39)*Inputs!$B$16+MAX(0,M39-O39)*Inputs!$B$17)*Inputs!$B$6,0) -> 942.263594 | Q39: =IFERROR((M39*Inputs!$B$18*Inputs!$B$6),0) -> 4380.03919 | R39: =IFERROR(R38*(1+Assumptions!$B$2)+P39,0) -> 29019.9534 | S39: =IFERROR(S38*(1+Assumptions!$B$2)+Q39,0) -> 146502.6867 | T39: =T38*(1+Z38) -> 0 | U39: 79120.50265 | X39: 0.008763894903 | Y39: =MAX(IF(($L$4-K39)>=9,((1+Assumptions!$B$5)-1),((1+Assumptions!$B$5)-1)*($L$4-K39)/9+((1+Assumptions!$B$6)-1)*(1-($L$4-K39)/9)),0) -> 0.01873888889 | Z39: 0.009810768333
B40: =MIN(IF(B39+1=4,5,IF(B39+1=8,9,IF(B39+1=12,13,B39+1))),Inputs!$G$31) -> 27 | C40: =VLOOKUP(B40,Inputs!$G$4:$H$77,2,FALSE) -> 70795 | D40: =Inputs!$B$8*26.09 -> 0 | E40: =Inputs!$B$9*26.09 -> 0 | F40: =IF(L40>=34,Inputs!$K$4,0) -> 2446 | G40: 73241 | H40: =Inputs!$B$12*26.09*Assumptions!$B$9*M40/$G$7 -> 2427.015599 | K40: 61 | L40: 39.68055556 | M40: =IFERROR((G40)*(1+Assumptions!$B$3)^(K40-K$7),0) -> 118553.0607 | N40: =IFERROR(Inputs!$B$19*52.18*(1+Assumptions!$B$4)^(K40-K$7),0) -> 20971.97348 | O40: 78435.18081 | P40: =IFERROR((MIN(M40,O40)*Inputs!$B$16+MAX(0,M40-O40)*Inputs!$B$17)*Inputs!$B$6,0) -> 956.3975479 | Q40: =IFERROR((M40*Inputs!$B$18*Inputs!$B$6),0) -> 4445.739778 | R40: =IFERROR(R39*(1+Assumptions!$B$2)+P40,0) -> 30411.65025 | S40: =IFERROR(S39*(1+Assumptions!$B$2)+Q40,0) -> 153145.9667 | T40: =T39*(1+Z39) -> 0 | U40: 82335.62756 | X40: 0.008714541056 | Y40: =MAX(IF(($L$4-K40)>=9,((1+Assumptions!$B$5)-1),((1+Assumptions!$B$5)-1)*($L$4-K40)/9+((1+Assumptions!$B$6)-1)*(1-($L$4-K40)/9)),0) -> 0.01499111111 | Z40: 0.006145929402
B41: =MIN(IF(B40+1=4,5,IF(B40+1=8,9,IF(B40+1=12,13,B40+1))),Inputs!$G$31) -> 27 | C41: =VLOOKUP(B41,Inputs!$G$4:$H$77,2,FALSE) -> 70795 | D41: =Inputs!$B$8*26.09 -> 0 | E41: =Inputs!$B$9*26.09 -> 0 | F41: =IF(L41>=34,Inputs!$K$4,0) -> 2446 | G41: 73241 | H41: =Inputs!$B$12*26.09*Assumptions!$B$9*M41/$G$7 -> 2463.420833 | K41: 62 | L41: 40.68055556 | M41: =IFERROR((G41)*(1+Assumptions!$B$3)^(K41-K$7),0) -> 120331.3567 | N41: =IFERROR(Inputs!$B$19*52.18*(1+Assumptions!$B$4)^(K41-K$7),0) -> 21286.55308 | O41: 79611.70853 | P41: =IFERROR((MIN(M41,O41)*Inputs!$B$16+MAX(0,M41-O41)*Inputs!$B$17)*Inputs!$B$6,0) -> 970.7435111 | Q41: =IFERROR((M41*Inputs!$B$18*Inputs!$B$6),0) -> 4512.425875 | R41: =IFERROR(R40*(1+Assumptions!$B$2)+P41,0) -> 31838.56852 | S41: =IFERROR(S40*(1+Assumptions!$B$2)+Q41,0) -> 159955.5821 | T41: 0 | U41: 85312.63575 | X41: 0.008672159307 | Y41: =MAX(IF(($L$4-K41)>=9,((1+Assumptions!$B$5)-1),((1+Assumptions!$B$5)-1)*($L$4-K41)/9+((1+Assumptions!$B$6)-1)*(1-($L$4-K41)/9)),0) -> 0.01124333333 | Z41: 0.002473670049
B42: =MIN(IF(B41+1=4,5,IF(B41+1=8,9,IF(B41+1=12,13,B41+1))),Inputs!$G$31) -> 27 | C42: =VLOOKUP(B42,Inputs!$G$4:$H$77,2,FALSE) -> 70795 | D42: =Inputs!$B$8*26.09 -> 0 | E42: =Inputs!$B$9*26.09 -> 0 | F42: =IF(L42>=34,Inputs!$K$4,0) -> 2446 | G42: 73241 | H42: =Inputs!$B$12*26.09*Assumptions!$B$9*M42/$G$7 -> 2500.372146 | K42: 63 | L42: 41.68055556 | M42: =IFERROR((G42)*(1+Assumptions!$B$3)^(K42-K$7),0) -> 122136.327 | N42: =IFERROR(Inputs!$B$19*52.18*(1+Assumptions!$B$4)^(K42-K$7),0) -> 21605.85138 | O42: 80805.88415 | P42: =IFERROR((MIN(M42,O42)*Inputs!$B$16+MAX(0,M42-O42)*Inputs!$B$17)*Inputs!$B$6,0) -> 985.3046638 | Q42: =IFERROR((M42*Inputs!$B$18*Inputs!$B$6),0) -> 4580.112263 | R42: =IFERROR(R41*(1+Assumptions!$B$2)+P42,0) -> 33301.45171 | S42: =IFERROR(S41*(1+Assumptions!$B$2)+Q42,0) -> 166935.0281 | T42: 0 | U42: 88027.13385 | X42: 0.008636013359 | Y42: =MAX(IF(($L$4-K42)>=9,((1+Assumptions!$B$5)-1),((1+Assumptions!$B$5)-1)*($L$4-K42)/9+((1+Assumptions!$B$6)-1)*(1-($L$4-K42)/9)),0) -> 0.007495555556 | Z42: -0.001205189521
B43: =MIN(IF(B42+1=4,5,IF(B42+1=8,9,IF(B42+1=12,13,B42+1))),Inputs!$G$31) -> 27 | C43: =VLOOKUP(B43,Inputs!$G$4:$H$77,2,FALSE) -> 70795 | D43: =Inputs!$B$8*26.09 -> 0 | E43: =Inputs!$B$9*26.09 -> 0 | F43: =IF(L43>=34,Inputs!$K$4,0) -> 2446 | G43: 73241 | H43: =Inputs!$B$12*26.09*Assumptions!$B$9*M43/$G$7 -> 2537.877728 | K43: 64 | L43: 42.68055556 | M43: =IFERROR((G43)*(1+Assumptions!$B$3)^(K43-K$7),0) -> 123968.3719 | N43: =IFERROR(Inputs!$B$19*52.18*(1+Assumptions!$B$4)^(K43-K$7),0) -> 21929.93915 | O43: 82017.97242 | P43: =IFERROR((MIN(M43,O43)*Inputs!$B$16+MAX(0,M43-O43)*Inputs!$B$17)*Inputs!$B$6,0) -> 1000.084234 | Q43: =IFERROR((M43*Inputs!$B$18*Inputs!$B$6),0) -> 4648.813947 | R43: =IFERROR(R42*(1+Assumptions!$B$2)+P43,0) -> 34801.05772 | S43: =IFERROR(S42*(1+Assumptions!$B$2)+Q43,0) -> 174087.8675 | T43: 0 | U43: 90457.39243 | X43: 0.008605492844 | Y43: =MAX(IF(($L$4-K43)>=9,((1+Assumptions!$B$5)-1),((1+Assumptions!$B$5)-1)*($L$4-K43)/9+((1+Assumptions!$B$6)-1)*(1-($L$4-K43)/9)),0) -> 0.003747777778 | Z43: -0.004889966541
B44: =MIN(IF(B43+1=4,5,IF(B43+1=8,9,IF(B43+1=12,13,B43+1))),Inputs!$G$31) -> 27 | C44: =VLOOKUP(B44,Inputs!$G$4:$H$77,2,FALSE) -> 70795 | D44: =Inputs!$B$8*26.09 -> 0 | E44: =Inputs!$B$9*26.09 -> 0 | F44: =IF(L44>=34,Inputs!$K$4,0) -> 2446 | G44: 73241 | H44: =Inputs!$B$12*26.09*Assumptions!$B$9*M44/$G$7 -> 2575.945894 | K44: 65 | L44: 43.68055556 | M44: =IFERROR((G44)*(1+Assumptions!$B$3)^(K44-K$7),0) -> 125827.8975 | N44: =IFERROR(Inputs!$B$19*52.18*(1+Assumptions!$B$4)^(K44-K$7),0) -> 22258.88824 | O44: 83248.242 | P44: =IFERROR((MIN(M44,O44)*Inputs!$B$16+MAX(0,M44-O44)*Inputs!$B$17)*Inputs!$B$6,0) -> 1015.085497 | Q44: =IFERROR((M44*Inputs!$B$18*Inputs!$B$6),0) -> 4718.546156 | R44: =IFERROR(R43*(1+Assumptions!$B$2)+P44,0) -> 36338.15908 | S44: =IFERROR(S43*(1+Assumptions!$B$2)+Q44,0) -> 181417.7316 | T44: 0 | U44: 92584.69883 | X44: 0.008580092081 | Y44: =MAX(IF(($L$4-K44)>=9,((1+Assumptions!$B$5)-1),((1+Assumptions!$B$5)-1)*($L$4-K44)/9+((1+Assumptions!$B$6)-1)*(1-($L$4-K44)/9)),0) -> 0 | Z44: -0.008580092081
B45: =MIN(IF(B44+1=4,5,IF(B44+1=8,9,IF(B44+1=12,13,B44+1))),Inputs!$G$31) -> 27 | C45: =VLOOKUP(B45,Inputs!$G$4:$H$77,2,FALSE) -> 70795 | D45: =Inputs!$B$8*26.09 -> 0 | E45: =Inputs!$B$9*26.09 -> 0 | F45: =IF(L45>=34,Inputs!$K$4,0) -> 2446 | G45: 73241 | H45: =Inputs!$B$12*26.09*Assumptions!$B$9*M45/$G$7 -> 2614.585082 | K45: 66 | L45: 44.68055556 | M45: =IFERROR((G45)*(1+Assumptions!$B$3)^(K45-K$7),0) -> 127715.316 | N45: =IFERROR(Inputs!$B$19*52.18*(1+Assumptions!$B$4)^(K45-K$7),0) -> 22592.77156 | O45: 84496.96563 | P45: =IFERROR((MIN(M45,O45)*Inputs!$B$16+MAX(0,M45-O45)*Inputs!$B$17)*Inputs!$B$6,0) -> 1030.31178 | Q45: =IFERROR((M45*Inputs!$B$18*Inputs!$B$6),0) -> 4789.324348 | R45: =IFERROR(R44*(1+Assumptions!$B$2)+P45,0) -> 37913.54325 | S45: =IFERROR(S44*(1+Assumptions!$B$2)+Q45,0) -> 188928.322 | T45: 0 | U45: 94393.65782 | X45: 0.008559393208 | Y45: =MAX(IF(($L$4-K45)>=9,((1+Assumptions!$B$5)-1),((1+Assumptions!$B$5)-1)*($L$4-K45)/9+((1+Assumptions!$B$6)-1)*(1-($L$4-K45)/9)),0) -> 0 | Z45: -0.008559393208
B46: =MIN(IF(B45+1=4,5,IF(B45+1=8,9,IF(B45+1=12,13,B45+1))),Inputs!$G$31) -> 27 | C46: =VLOOKUP(B46,Inputs!$G$4:$H$77,2,FALSE) -> 70795 | D46: =Inputs!$B$8*26.09 -> 0 | E46: =Inputs!$B$9*26.09 -> 0 | F46: =IF(L46>=34,Inputs!$K$4,0) ->  | H46: =Inputs!$B$12*26.09*Assumptions!$B$9*M46/$G$7 -> 0 | M46: =IFERROR((G46)*(1+Assumptions!$B$3)^(K46-K$7),0) -> 0 | N46: =IFERROR(Inputs!$B$19*52.18*(1+Assumptions!$B$4)^(K46-K$7),0) -> 0 | O46: 0 | P46: =IFERROR((MIN(M46,O46)*Inputs!$B$16+MAX(0,M46-O46)*Inputs!$B$17)*Inputs!$B$6,0) -> 0 | Q46: =IFERROR((M46*Inputs!$B$18*Inputs!$B$6),0) -> 0 | R46: =IFERROR(R45*(1+Assumptions!$B$2)+P46,0) -> 38482.2464 | S46: =IFERROR(S45*(1+Assumptions!$B$2)+Q46,0) -> 191762.2468 | T46: 0 | U46: 93585.70539 | X46: 0.008568539256 | Y46: =MAX(IF(($L$4-K46)>=9,((1+Assumptions!$B$5)-1),((1+Assumptions!$B$5)-1)*($L$4-K46)/9+((1+Assumptions!$B$6)-1)*(1-($L$4-K46)/9)),0) -> 
B47: =MIN(IF(B46+1=4,5,IF(B46+1=8,9,IF(B46+1=12,13,B46+1))),Inputs!$G$31) -> 27 | C47: =VLOOKUP(B47,Inputs!$G$4:$H$77,2,FALSE) -> 70795 | D47: =Inputs!$B$8*26.09 -> 0 | E47: =Inputs!$B$9*26.09 -> 0 | F47: =IF(L47>=34,Inputs!$K$4,0) ->  | H47: =Inputs!$B$12*26.09*Assumptions!$B$9*M47/$G$7 -> 0 | M47: =IFERROR((G47)*(1+Assumptions!$B$3)^(K47-K$7),0) -> 0 | N47: =IFERROR(Inputs!$B$19*52.18*(1+Assumptions!$B$4)^(K47-K$7),0) -> 0 | O47: 0 | P47: =IFERROR((MIN(M47,O47)*Inputs!$B$16+MAX(0,M47-O47)*Inputs!$B$17)*Inputs!$B$6,0) -> 0 | Q47: =IFERROR((M47*Inputs!$B$18*Inputs!$B$6),0) -> 0 | R47: =IFERROR(R46*(1+Assumptions!$B$2)+P47,0) -> 39059.48009 | S47: =IFERROR(S46*(1+Assumptions!$B$2)+Q47,0) -> 194638.6805 | Y47: =MAX(IF(($L$4-K47)>=9,((1+Assumptions!$B$5)-1),((1+Assumptions!$B$5)-1)*($L$4-K47)/9+((1+Assumptions!$B$6)-1)*(1-($L$4-K47)/9)),0) -> 
B48: =MIN(IF(B47+1=4,5,IF(B47+1=8,9,IF(B47+1=12,13,B47+1))),Inputs!$G$31) -> 27 | C48: =VLOOKUP(B48,Inputs!$G$4:$H$77,2,FALSE) -> 70795 | D48: =Inputs!$B$8*26.09 -> 0 | E48: =Inputs!$B$9*26.09 -> 0 | F48: =IF(L48>=34,Inputs!$K$4,0) ->  | H48: =Inputs!$B$12*26.09*Assumptions!$B$9*M48/$G$7 -> 0 | K48: =IFERROR(IF(K47>=$L$3,"",K47+1),0) ->  | M48: =IFERROR((G48)*(1+Assumptions!$B$3)^(K48-K$7),0) -> 0 | N48: =IFERROR(Inputs!$B$19*52.18*(1+Assumptions!$B$4)^(K48-K$7),0) -> 0 | O48: =IFERROR(N48*3.74,0) -> 0 | P48: =IFERROR((MIN(M48,O48)*Inputs!$B$16+MAX(0,M48-O48)*Inputs!$B$17)*Inputs!$B$6,0) -> 0 | Q48: =IFERROR((M48*Inputs!$B$18*Inputs!$B$6),0) -> 0 | R48: =IFERROR(R47*(1+Assumptions!$B$2)+P48,0) -> 39645.37229 | S48: =IFERROR(S47*(1+Assumptions!$B$2)+Q48,0) -> 197558.2607 | Y48: =MAX(IF(($L$4-K48)>=9,((1+Assumptions!$B$5)-1),((1+Assumptions!$B$5)-1)*($L$4-K48)/9+((1+Assumptions!$B$6)-1)*(1-($L$4-K48)/9)),0) -> 
B49: =MIN(IF(B48+1=4,5,IF(B48+1=8,9,IF(B48+1=12,13,B48+1))),Inputs!$G$31) -> 27 | C49: =VLOOKUP(B49,Inputs!$G$4:$H$77,2,FALSE) -> 70795 | D49: =Inputs!$B$8*26.09 -> 0 | E49: =Inputs!$B$9*26.09 -> 0 | F49: =IF(L49>=34,Inputs!$K$4,0) ->  | H49: =Inputs!$B$12*26.09*Assumptions!$B$9*M49/$G$7 -> 0 | M49: =IFERROR((G49)*(1+Assumptions!$B$3)^(K49-K$7),0) -> 0 | N49: =IFERROR(Inputs!$B$19*52.18*(1+Assumptions!$B$4)^(K49-K$7),0) -> 0 | O49: =IFERROR(N49*3.74,0) -> 0 | P49: =IFERROR((MIN(M49,O49)*Inputs!$B$16+MAX(0,M49-O49)*Inputs!$B$17)*Inputs!$B$6,0) -> 0 | Q49: =IFERROR((M49*Inputs!$B$18*Inputs!$B$6),0) -> 0 | R49: =IFERROR(R48*(1+Assumptions!$B$2)+P49,0) -> 40240.05288 | S49: =IFERROR(S48*(1+Assumptions!$B$2)+Q49,0) -> 200521.6346 | Y49: =MAX(IF(($L$4-K49)>=9,((1+Assumptions!$B$5)-1),((1+Assumptions!$B$5)-1)*($L$4-K49)/9+((1+Assumptions!$B$6)-1)*(1-($L$4-K49)/9)),0) -> 
B50: =MIN(IF(B49+1=4,5,IF(B49+1=8,9,IF(B49+1=12,13,B49+1))),Inputs!$G$31) -> 27 | C50: =VLOOKUP(B50,Inputs!$G$4:$H$77,2,FALSE) -> 70795 | D50: =Inputs!$B$8*26.09 -> 0 | E50: =Inputs!$B$9*26.09 -> 0 | F50: =IF(L50>=34,Inputs!$K$4,0) ->  | H50: =Inputs!$B$12*26.09*Assumptions!$B$9*M50/$G$7 -> 0 | M50: =IFERROR((G50)*(1+Assumptions!$B$3)^(K50-K$7),0) -> 0 | N50: =IFERROR(Inputs!$B$19*52.18*(1+Assumptions!$B$4)^(K50-K$7),0) -> 0 | O50: =IFERROR(N50*3.74,0) -> 0 | P50: =IFERROR((MIN(M50,O50)*Inputs!$B$16+MAX(0,M50-O50)*Inputs!$B$17)*Inputs!$B$6,0) -> 0 | Q50: =IFERROR((M50*Inputs!$B$18*Inputs!$B$6),0) -> 0 | R50: =IFERROR(R49*(1+Assumptions!$B$2)+P50,0) -> 40843.65367 | S50: =IFERROR(S49*(1+Assumptions!$B$2)+Q50,0) -> 203529.4591 | Y50: =MAX(IF(($L$4-K50)>=9,((1+Assumptions!$B$5)-1),((1+Assumptions!$B$5)-1)*($L$4-K50)/9+((1+Assumptions!$B$6)-1)*(1-($L$4-K50)/9)),0) -> 
B51: =MIN(IF(B50+1=4,5,IF(B50+1=8,9,IF(B50+1=12,13,B50+1))),Inputs!$G$31) -> 27 | C51: =VLOOKUP(B51,Inputs!$G$4:$H$77,2,FALSE) -> 70795 | D51: =Inputs!$B$8*26.09 -> 0 | E51: =Inputs!$B$9*26.09 -> 0 | F51: =IF(L51>=34,Inputs!$K$4,0) ->  | H51: =Inputs!$B$12*26.09*Assumptions!$B$9*M51/$G$7 -> 0 | M51: =IFERROR((G51)*(1+Assumptions!$B$3)^(K51-K$7),0) -> 0 | N51: =IFERROR(Inputs!$B$19*52.18*(1+Assumptions!$B$4)^(K51-K$7),0) -> 0 | O51: 0 | P51: =IFERROR((MIN(M51,O51)*Inputs!$B$16+MAX(0,M51-O51)*Inputs!$B$17)*Inputs!$B$6,0) -> 0 | Q51: =IFERROR((M51*Inputs!$B$18*Inputs!$B$6),0) -> 0 | R51: =IFERROR(R50*(1+Assumptions!$B$2)+P51,0) -> 41456.30848 | S51: =IFERROR(S50*(1+Assumptions!$B$2)+Q51,0) -> 206582.401 | Y51: =MAX(IF(($L$4-K51)>=9,((1+Assumptions!$B$5)-1),((1+Assumptions!$B$5)-1)*($L$4-K51)/9+((1+Assumptions!$B$6)-1)*(1-($L$4-K51)/9)),0) -> 
B52: =MIN(IF(B51+1=4,5,IF(B51+1=8,9,IF(B51+1=12,13,B51+1))),Inputs!$G$31) -> 27 | C52: =VLOOKUP(B52,Inputs!$G$4:$H$77,2,FALSE) -> 70795 | D52: =Inputs!$B$8*26.09 -> 0 | E52: =Inputs!$B$9*26.09 -> 0 | F52: =IF(L52>=34,Inputs!$K$4,0) ->  | H52: =Inputs!$B$12*26.09*Assumptions!$B$9*M52/$G$7 -> 0 | M52: =IFERROR((G52)*(1+Assumptions!$B$3)^(K52-K$7),0) -> 0 | N52: =IFERROR(Inputs!$B$19*52.18*(1+Assumptions!$B$4)^(K52-K$7),0) -> 0 | O52: 0 | P52: =IFERROR((MIN(M52,O52)*Inputs!$B$16+MAX(0,M52-O52)*Inputs!$B$17)*Inputs!$B$6,0) -> 0 | Q52: =IFERROR((M52*Inputs!$B$18*Inputs!$B$6),0) -> 0 | R52: =IFERROR(R51*(1+Assumptions!$B$2)+P52,0) -> 42078.1531 | S52: =IFERROR(S51*(1+Assumptions!$B$2)+Q52,0) -> 209681.137 | Y52: =MAX(IF(($L$4-K52)>=9,((1+Assumptions!$B$5)-1),((1+Assumptions!$B$5)-1)*($L$4-K52)/9+((1+Assumptions!$B$6)-1)*(1-($L$4-K52)/9)),0) -> 
B53: =MIN(IF(B52+1=4,5,IF(B52+1=8,9,IF(B52+1=12,13,B52+1))),Inputs!$G$31) -> 27 | C53: =VLOOKUP(B53,Inputs!$G$4:$H$77,2,FALSE) -> 70795 | D53: =Inputs!$B$8*26.09 -> 0 | E53: =Inputs!$B$9*26.09 -> 0 | F53: =IF(L53>=34,Inputs!$K$4,0) ->  | H53: =Inputs!$B$12*26.09*Assumptions!$B$9*M53/$G$7 -> 0 | M53: =IFERROR((G53)*(1+Assumptions!$B$3)^(K53-K$7),0) -> 0 | N53: =IFERROR(Inputs!$B$19*52.18*(1+Assumptions!$B$4)^(K53-K$7),0) -> 0 | O53: 0 | P53: =IFERROR((MIN(M53,O53)*Inputs!$B$16+MAX(0,M53-O53)*Inputs!$B$17)*Inputs!$B$6,0) -> 0 | Q53: =IFERROR((M53*Inputs!$B$18*Inputs!$B$6),0) -> 0 | R53: =IFERROR(R52*(1+Assumptions!$B$2)+P53,0) -> 42709.3254 | S53: =IFERROR(S52*(1+Assumptions!$B$2)+Q53,0) -> 212826.3541 | Y53: =MAX(IF(($L$4-K53)>=9,((1+Assumptions!$B$5)-1),((1+Assumptions!$B$5)-1)*($L$4-K53)/9+((1+Assumptions!$B$6)-1)*(1-($L$4-K53)/9)),0) -> 
B54: =MIN(IF(B53+1=4,5,IF(B53+1=8,9,IF(B53+1=12,13,B53+1))),Inputs!$G$31) -> 27 | C54: =VLOOKUP(B54,Inputs!$G$4:$H$77,2,FALSE) -> 70795 | D54: =Inputs!$B$8*26.09 -> 0 | E54: =Inputs!$B$9*26.09 -> 0 | F54: =IF(L54>=34,Inputs!$K$4,0) ->  | H54: =Inputs!$B$12*26.09*Assumptions!$B$9*M54/$G$7 -> 0 | M54: =IFERROR((G54)*(1+Assumptions!$B$3)^(K54-K$7),0) -> 0 | N54: =IFERROR(Inputs!$B$19*52.18*(1+Assumptions!$B$4)^(K54-K$7),0) -> 0 | O54: 0 | P54: =IFERROR((MIN(M54,O54)*Inputs!$B$16+MAX(0,M54-O54)*Inputs!$B$17)*Inputs!$B$6,0) -> 0 | Q54: =IFERROR((M54*Inputs!$B$18*Inputs!$B$6),0) -> 0 | R54: =IFERROR(R53*(1+Assumptions!$B$2)+P54,0) -> 43349.96528 | S54: =IFERROR(S53*(1+Assumptions!$B$2)+Q54,0) -> 216018.7494 | Y54: =MAX(IF(($L$4-K54)>=9,((1+Assumptions!$B$5)-1),((1+Assumptions!$B$5)-1)*($L$4-K54)/9+((1+Assumptions!$B$6)-1)*(1-($L$4-K54)/9)),0) -> 
B55: =MIN(IF(B54+1=4,5,IF(B54+1=8,9,IF(B54+1=12,13,B54+1))),Inputs!$G$31) -> 27 | C55: =VLOOKUP(B55,Inputs!$G$4:$H$77,2,FALSE) -> 70795 | D55: =Inputs!$B$8*26.09 -> 0 | E55: =Inputs!$B$9*26.09 -> 0 | F55: =IF(L55>=34,Inputs!$K$4,0) ->  | H55: =Inputs!$B$12*26.09*Assumptions!$B$9*M55/$G$7 -> 0 | M55: =IFERROR((G55)*(1+Assumptions!$B$3)^(K55-K$7),0) -> 0 | N55: =IFERROR(Inputs!$B$19*52.18*(1+Assumptions!$B$4)^(K55-K$7),0) -> 0 | O55: 0 | P55: =IFERROR((MIN(M55,O55)*Inputs!$B$16+MAX(0,M55-O55)*Inputs!$B$17)*Inputs!$B$6,0) -> 0 | Q55: =IFERROR((M55*Inputs!$B$18*Inputs!$B$6),0) -> 0 | R55: =IFERROR(R54*(1+Assumptions!$B$2)+P55,0) -> 44000.21476 | S55: =IFERROR(S54*(1+Assumptions!$B$2)+Q55,0) -> 219259.0306 | Y55: =MAX(IF(($L$4-K55)>=9,((1+Assumptions!$B$5)-1),((1+Assumptions!$B$5)-1)*($L$4-K55)/9+((1+Assumptions!$B$6)-1)*(1-($L$4-K55)/9)),0) -> 
B56: =MIN(IF(B55+1=4,5,IF(B55+1=8,9,IF(B55+1=12,13,B55+1))),Inputs!$G$31) -> 27 | C56: =VLOOKUP(B56,Inputs!$G$4:$H$77,2,FALSE) -> 70795 | D56: =Inputs!$B$8*26.09 -> 0 | E56: =Inputs!$B$9*26.09 -> 0 | F56: =IF(L56>=34,Inputs!$K$4,0) ->  | H56: =Inputs!$B$12*26.09*Assumptions!$B$9*M56/$G$7 -> 0 | M56: =IFERROR((G56)*(1+Assumptions!$B$3)^(K56-K$7),0) -> 0 | N56: =IFERROR(Inputs!$B$19*52.18*(1+Assumptions!$B$4)^(K56-K$7),0) -> 0 | O56: 0 | P56: =IFERROR((MIN(M56,O56)*Inputs!$B$16+MAX(0,M56-O56)*Inputs!$B$17)*Inputs!$B$6,0) -> 0 | Q56: =IFERROR((M56*Inputs!$B$18*Inputs!$B$6),0) -> 0 | R56: =IFERROR(R55*(1+Assumptions!$B$2)+P56,0) -> 44660.21798 | S56: =IFERROR(S55*(1+Assumptions!$B$2)+Q56,0) -> 222547.9161 | Y56: =MAX(IF(($L$4-K56)>=9,((1+Assumptions!$B$5)-1),((1+Assumptions!$B$5)-1)*($L$4-K56)/9+((1+Assumptions!$B$6)-1)*(1-($L$4-K56)/9)),0) -> 
B57: =MIN(IF(B56+1=4,5,IF(B56+1=8,9,IF(B56+1=12,13,B56+1))),Inputs!$G$31) -> 27 | C57: =VLOOKUP(B57,Inputs!$G$4:$H$77,2,FALSE) -> 70795 | D57: =Inputs!$B$8*26.09 -> 0 | E57: =Inputs!$B$9*26.09 -> 0 | F57: =IF(L57>=34,Inputs!$K$4,0) ->  | H57: =Inputs!$B$12*26.09*Assumptions!$B$9*M57/$G$7 -> 0 | M57: =IFERROR((G57)*(1+Assumptions!$B$3)^(K57-K$7),0) -> 0 | N57: =IFERROR(Inputs!$B$19*52.18*(1+Assumptions!$B$4)^(K57-K$7),0) -> 0 | O57: 0 | P57: =IFERROR((MIN(M57,O57)*Inputs!$B$16+MAX(0,M57-O57)*Inputs!$B$17)*Inputs!$B$6,0) -> 0 | Q57: =IFERROR((M57*Inputs!$B$18*Inputs!$B$6),0) -> 0 | R57: =IFERROR(R56*(1+Assumptions!$B$2)+P57,0) -> 45330.12125 | S57: =IFERROR(S56*(1+Assumptions!$B$2)+Q57,0) -> 225886.1349 | Y57: =MAX(IF(($L$4-K57)>=9,((1+Assumptions!$B$5)-1),((1+Assumptions!$B$5)-1)*($L$4-K57)/9+((1+Assumptions!$B$6)-1)*(1-($L$4-K57)/9)),0) -> 
B58: =MIN(IF(B57+1=4,5,IF(B57+1=8,9,IF(B57+1=12,13,B57+1))),Inputs!$G$31) -> 27 | C58: =VLOOKUP(B58,Inputs!$G$4:$H$77,2,FALSE) -> 70795 | D58: =Inputs!$B$8*26.09 -> 0 | E58: =Inputs!$B$9*26.09 -> 0 | F58: =IF(L58>=34,Inputs!$K$4,0) ->  | H58: =Inputs!$B$12*26.09*Assumptions!$B$9*M58/$G$7 -> 0 | M58: =IFERROR((G58)*(1+Assumptions!$B$3)^(K58-K$7),0) -> 0 | N58: =IFERROR(Inputs!$B$19*52.18*(1+Assumptions!$B$4)^(K58-K$7),0) -> 0 | O58: 0 | P58: =IFERROR((MIN(M58,O58)*Inputs!$B$16+MAX(0,M58-O58)*Inputs!$B$17)*Inputs!$B$6,0) -> 0 | Q58: =IFERROR((M58*Inputs!$B$18*Inputs!$B$6),0) -> 0 | R58: =IFERROR(R57*(1+Assumptions!$B$2)+P58,0) -> 46010.07307 | S58: =IFERROR(S57*(1+Assumptions!$B$2)+Q58,0) -> 229274.4269 | Y58: =MAX(IF(($L$4-K58)>=9,((1+Assumptions!$B$5)-1),((1+Assumptions!$B$5)-1)*($L$4-K58)/9+((1+Assumptions!$B$6)-1)*(1-($L$4-K58)/9)),0) -> 
B59: =MIN(IF(B58+1=4,5,IF(B58+1=8,9,IF(B58+1=12,13,B58+1))),Inputs!$G$31) -> 27 | C59: =VLOOKUP(B59,Inputs!$G$4:$H$77,2,FALSE) -> 70795 | D59: =Inputs!$B$8*26.09 -> 0 | E59: =Inputs!$B$9*26.09 -> 0 | F59: =IF(L59>=34,Inputs!$K$4,0) ->  | H59: =Inputs!$B$12*26.09*Assumptions!$B$9*M59/$G$7 -> 0 | M59: =IFERROR((G59)*(1+Assumptions!$B$3)^(K59-K$7),0) -> 0 | N59: =IFERROR(Inputs!$B$19*52.18*(1+Assumptions!$B$4)^(K59-K$7),0) -> 0 | O59: 0 | P59: =IFERROR((MIN(M59,O59)*Inputs!$B$16+MAX(0,M59-O59)*Inputs!$B$17)*Inputs!$B$6,0) -> 0 | Q59: =IFERROR((M59*Inputs!$B$18*Inputs!$B$6),0) -> 0 | R59: =IFERROR(R58*(1+Assumptions!$B$2)+P59,0) -> 46700.22417 | S59: =IFERROR(S58*(1+Assumptions!$B$2)+Q59,0) -> 232713.5433 | Y59: =MAX(IF(($L$4-K59)>=9,((1+Assumptions!$B$5)-1),((1+Assumptions!$B$5)-1)*($L$4-K59)/9+((1+Assumptions!$B$6)-1)*(1-($L$4-K59)/9)),0) -> 
B60: =MIN(IF(B59+1=4,5,IF(B59+1=8,9,IF(B59+1=12,13,B59+1))),Inputs!$G$31) -> 27 | C60: =VLOOKUP(B60,Inputs!$G$4:$H$77,2,FALSE) -> 70795 | D60: =Inputs!$B$8*26.09 -> 0 | E60: =Inputs!$B$9*26.09 -> 0 | F60: =IF(L60>=34,Inputs!$K$4,0) ->  | H60: =Inputs!$B$12*26.09*Assumptions!$B$9*M60/$G$7 -> 0 | M60: =IFERROR((G60)*(1+Assumptions!$B$3)^(K60-K$7),0) -> 0 | N60: =IFERROR(Inputs!$B$19*52.18*(1+Assumptions!$B$4)^(K60-K$7),0) -> 0 | O60: 0 | P60: =IFERROR((MIN(M60,O60)*Inputs!$B$16+MAX(0,M60-O60)*Inputs!$B$17)*Inputs!$B$6,0) -> 0 | Q60: =IFERROR((M60*Inputs!$B$18*Inputs!$B$6),0) -> 0 | R60: =IFERROR(R59*(1+Assumptions!$B$2)+P60,0) -> 47400.72753 | S60: =IFERROR(S59*(1+Assumptions!$B$2)+Q60,0) -> 236204.2464 | Y60: =MAX(IF(($L$4-K60)>=9,((1+Assumptions!$B$5)-1),((1+Assumptions!$B$5)-1)*($L$4-K60)/9+((1+Assumptions!$B$6)-1)*(1-($L$4-K60)/9)),0) -> 
B61: =MIN(IF(B60+1=4,5,IF(B60+1=8,9,IF(B60+1=12,13,B60+1))),Inputs!$G$31) -> 27 | C61: =VLOOKUP(B61,Inputs!$G$4:$H$77,2,FALSE) -> 70795 | D61: =Inputs!$B$8*26.09 -> 0 | E61: =Inputs!$B$9*26.09 -> 0 | F61: =IF(L61>=34,Inputs!$K$4,0) ->  | H61: =Inputs!$B$12*26.09*Assumptions!$B$9*M61/$G$7 -> 0 | M61: =IFERROR((G61)*(1+Assumptions!$B$3)^(K61-K$7),0) -> 0 | N61: =IFERROR(Inputs!$B$19*52.18*(1+Assumptions!$B$4)^(K61-K$7),0) -> 0 | O61: 0 | P61: =IFERROR((MIN(M61,O61)*Inputs!$B$16+MAX(0,M61-O61)*Inputs!$B$17)*Inputs!$B$6,0) -> 0 | Q61: =IFERROR((M61*Inputs!$B$18*Inputs!$B$6),0) -> 0 | R61: =IFERROR(R60*(1+Assumptions!$B$2)+P61,0) -> 48111.73844 | S61: =IFERROR(S60*(1+Assumptions!$B$2)+Q61,0) -> 239747.3101 | Y61: =MAX(IF(($L$4-K61)>=9,((1+Assumptions!$B$5)-1),((1+Assumptions!$B$5)-1)*($L$4-K61)/9+((1+Assumptions!$B$6)-1)*(1-($L$4-K61)/9)),0) -> 
B62: =MIN(IF(B61+1=4,5,IF(B61+1=8,9,IF(B61+1=12,13,B61+1))),Inputs!$G$31) -> 27 | C62: =VLOOKUP(B62,Inputs!$G$4:$H$77,2,FALSE) -> 70795 | D62: =Inputs!$B$8*26.09 -> 0 | E62: =Inputs!$B$9*26.09 -> 0 | F62: =IF(L62>=34,Inputs!$K$4,0) ->  | H62: =Inputs!$B$12*26.09*Assumptions!$B$9*M62/$G$7 -> 0 | M62: =IFERROR((G62)*(1+Assumptions!$B$3)^(K62-K$7),0) -> 0 | N62: =IFERROR(Inputs!$B$19*52.18*(1+Assumptions!$B$4)^(K62-K$7),0) -> 0 | O62: 0 | P62: =IFERROR((MIN(M62,O62)*Inputs!$B$16+MAX(0,M62-O62)*Inputs!$B$17)*Inputs!$B$6,0) -> 0 | Q62: =IFERROR((M62*Inputs!$B$18*Inputs!$B$6),0) -> 0 | R62: =IFERROR(R61*(1+Assumptions!$B$2)+P62,0) -> 48833.41452 | S62: =IFERROR(S61*(1+Assumptions!$B$2)+Q62,0) -> 243343.5198 | Y62: =MAX(IF(($L$4-K62)>=9,((1+Assumptions!$B$5)-1),((1+Assumptions!$B$5)-1)*($L$4-K62)/9+((1+Assumptions!$B$6)-1)*(1-($L$4-K62)/9)),0) -> 
B63: =MIN(IF(B62+1=4,5,IF(B62+1=8,9,IF(B62+1=12,13,B62+1))),Inputs!$G$31) -> 27 | C63: =VLOOKUP(B63,Inputs!$G$4:$H$77,2,FALSE) -> 70795 | D63: =Inputs!$B$8*26.09 -> 0 | E63: =Inputs!$B$9*26.09 -> 0 | F63: =IF(L63>=34,Inputs!$K$4,0) ->  | H63: =Inputs!$B$12*26.09*Assumptions!$B$9*M63/$G$7 -> 0 | M63: =IFERROR((G63)*(1+Assumptions!$B$3)^(K63-K$7),0) -> 0 | N63: =IFERROR(Inputs!$B$19*52.18*(1+Assumptions!$B$4)^(K63-K$7),0) -> 0 | O63: 0 | P63: =IFERROR((MIN(M63,O63)*Inputs!$B$16+MAX(0,M63-O63)*Inputs!$B$17)*Inputs!$B$6,0) -> 0 | Q63: =IFERROR((M63*Inputs!$B$18*Inputs!$B$6),0) -> 0 | R63: =IFERROR(R62*(1+Assumptions!$B$2)+P63,0) -> 49565.91574 | S63: =IFERROR(S62*(1+Assumptions!$B$2)+Q63,0) -> 246993.6726 | Y63: =MAX(IF(($L$4-K63)>=9,((1+Assumptions!$B$5)-1),((1+Assumptions!$B$5)-1)*($L$4-K63)/9+((1+Assumptions!$B$6)-1)*(1-($L$4-K63)/9)),0) -> 
B64: =MIN(IF(B63+1=4,5,IF(B63+1=8,9,IF(B63+1=12,13,B63+1))),Inputs!$G$31) -> 27 | C64: =VLOOKUP(B64,Inputs!$G$4:$H$77,2,FALSE) -> 70795 | D64: =Inputs!$B$8*26.09 -> 0 | E64: =Inputs!$B$9*26.09 -> 0 | F64: =IF(L64>=34,Inputs!$K$4,0) ->  | H64: =Inputs!$B$12*26.09*Assumptions!$B$9*M64/$G$7 -> 0 | M64: =IFERROR((G64)*(1+Assumptions!$B$3)^(K64-K$7),0) -> 0 | N64: =IFERROR(Inputs!$B$19*52.18*(1+Assumptions!$B$4)^(K64-K$7),0) -> 0 | O64: =IFERROR(N64*3.74,0) -> 0 | P64: =IFERROR((MIN(M64,O64)*Inputs!$B$16+MAX(0,M64-O64)*Inputs!$B$17)*Inputs!$B$6,0) -> 0 | Q64: =IFERROR((M64*Inputs!$B$18*Inputs!$B$6),0) -> 0 | R64: =IFERROR(R63*(1+Assumptions!$B$2)+P64,0) -> 50309.40447 | S64: =IFERROR(S63*(1+Assumptions!$B$2)+Q64,0) -> 250698.5777 | Y64: =MAX(IF(($L$4-K64)>=9,((1+Assumptions!$B$5)-1),((1+Assumptions!$B$5)-1)*($L$4-K64)/9+((1+Assumptions!$B$6)-1)*(1-($L$4-K64)/9)),0) -> 
B65: =MIN(IF(B64+1=4,5,IF(B64+1=8,9,IF(B64+1=12,13,B64+1))),Inputs!$G$31) -> 27 | C65: =VLOOKUP(B65,Inputs!$G$4:$H$77,2,FALSE) -> 70795 | D65: =Inputs!$B$8*26.09 -> 0 | E65: =Inputs!$B$9*26.09 -> 0 | F65: =IF(L65>=34,Inputs!$K$4,0) ->  | H65: =Inputs!$B$12*26.09*Assumptions!$B$9*M65/$G$7 -> 0 | M65: =IFERROR((G65)*(1+Assumptions!$B$3)^(K65-K$7),0) -> 0 | N65: =IFERROR(Inputs!$B$19*52.18*(1+Assumptions!$B$4)^(K65-K$7),0) -> 0 | O65: 0 | P65: =IFERROR((MIN(M65,O65)*Inputs!$B$16+MAX(0,M65-O65)*Inputs!$B$17)*Inputs!$B$6,0) -> 0 | Q65: =IFERROR((M65*Inputs!$B$18*Inputs!$B$6),0) -> 0 | R65: =IFERROR(R64*(1+Assumptions!$B$2)+P65,0) -> 51064.04554 | S65: =IFERROR(S64*(1+Assumptions!$B$2)+Q65,0) -> 254459.0563 | Y65: =MAX(IF(($L$4-K65)>=9,((1+Assumptions!$B$5)-1),((1+Assumptions!$B$5)-1)*($L$4-K65)/9+((1+Assumptions!$B$6)-1)*(1-($L$4-K65)/9)),0) -> 
B66: =MIN(IF(B65+1=4,5,IF(B65+1=8,9,IF(B65+1=12,13,B65+1))),Inputs!$G$31) -> 27 | C66: =VLOOKUP(B66,Inputs!$G$4:$H$77,2,FALSE) -> 70795 | D66: =Inputs!$B$8*26.09 -> 0 | E66: =Inputs!$B$9*26.09 -> 0 | F66: =IF(L66>=34,Inputs!$K$4,0) ->  | H66: =Inputs!$B$12*26.09*Assumptions!$B$9*M66/$G$7 -> 0 | M66: =IFERROR((G66)*(1+Assumptions!$B$3)^(K66-K$7),0) -> 0 | N66: =IFERROR(Inputs!$B$19*52.18*(1+Assumptions!$B$4)^(K66-K$7),0) -> 0 | O66: 0 | P66: =IFERROR((MIN(M66,O66)*Inputs!$B$16+MAX(0,M66-O66)*Inputs!$B$17)*Inputs!$B$6,0) -> 0 | Q66: =IFERROR((M66*Inputs!$B$18*Inputs!$B$6),0) -> 0 | R66: =IFERROR(R65*(1+Assumptions!$B$2)+P66,0) -> 51830.00622 | S66: =IFERROR(S65*(1+Assumptions!$B$2)+Q66,0) -> 258275.9422 | Y66: =MAX(IF(($L$4-K66)>=9,((1+Assumptions!$B$5)-1),((1+Assumptions!$B$5)-1)*($L$4-K66)/9+((1+Assumptions!$B$6)-1)*(1-($L$4-K66)/9)),0) -> 
B67: =MIN(IF(B66+1=4,5,IF(B66+1=8,9,IF(B66+1=12,13,B66+1))),Inputs!$G$31) -> 27 | C67: =VLOOKUP(B67,Inputs!$G$4:$H$77,2,FALSE) -> 70795 | D67: =Inputs!$B$8*26.09 -> 0 | E67: =Inputs!$B$9*26.09 -> 0 | F67: =IF(L67>=34,Inputs!$K$4,0) ->  | H67: =Inputs!$B$12*26.09*Assumptions!$B$9*M67/$G$7 -> 0 | M67: =IFERROR((G67)*(1+Assumptions!$B$3)^(K67-K$7),0) -> 0 | N67: =IFERROR(Inputs!$B$19*52.18*(1+Assumptions!$B$4)^(K67-K$7),0) -> 0 | O67: 0 | P67: =IFERROR((MIN(M67,O67)*Inputs!$B$16+MAX(0,M67-O67)*Inputs!$B$17)*Inputs!$B$6,0) -> 0 | Q67: =IFERROR((M67*Inputs!$B$18*Inputs!$B$6),0) -> 0 | R67: =IFERROR(R66*(1+Assumptions!$B$2)+P67,0) -> 52607.45632 | S67: =IFERROR(S66*(1+Assumptions!$B$2)+Q67,0) -> 262150.0813 | Y67: =MAX(IF(($L$4-K67)>=9,((1+Assumptions!$B$5)-1),((1+Assumptions!$B$5)-1)*($L$4-K67)/9+((1+Assumptions!$B$6)-1)*(1-($L$4-K67)/9)),0) -> 
B68: =MIN(IF(B67+1=4,5,IF(B67+1=8,9,IF(B67+1=12,13,B67+1))),Inputs!$G$31) -> 27 | C68: =VLOOKUP(B68,Inputs!$G$4:$H$77,2,FALSE) -> 70795 | D68: =Inputs!$B$8*26.09 -> 0 | E68: =Inputs!$B$9*26.09 -> 0 | F68: =IF(L68>=34,Inputs!$K$4,0) ->  | H68: =Inputs!$B$12*26.09*Assumptions!$B$9*M68/$G$7 -> 0 | M68: =IFERROR((G68)*(1+Assumptions!$B$3)^(K68-K$7),0) -> 0 | N68: =IFERROR(Inputs!$B$19*52.18*(1+Assumptions!$B$4)^(K68-K$7),0) -> 0 | O68: 0 | P68: =IFERROR((MIN(M68,O68)*Inputs!$B$16+MAX(0,M68-O68)*Inputs!$B$17)*Inputs!$B$6,0) -> 0 | Q68: =IFERROR((M68*Inputs!$B$18*Inputs!$B$6),0) -> 0 | R68: =IFERROR(R67*(1+Assumptions!$B$2)+P68,0) -> 53396.56816 | S68: =IFERROR(S67*(1+Assumptions!$B$2)+Q68,0) -> 266082.3325 | Y68: =MAX(IF(($L$4-K68)>=9,((1+Assumptions!$B$5)-1),((1+Assumptions!$B$5)-1)*($L$4-K68)/9+((1+Assumptions!$B$6)-1)*(1-($L$4-K68)/9)),0) -> 
B69: =MIN(IF(B68+1=4,5,IF(B68+1=8,9,IF(B68+1=12,13,B68+1))),Inputs!$G$31) -> 27 | C69: =VLOOKUP(B69,Inputs!$G$4:$H$77,2,FALSE) -> 70795 | D69: =Inputs!$B$8*26.09 -> 0 | E69: =Inputs!$B$9*26.09 -> 0 | F69: =IF(L69>=34,Inputs!$K$4,0) ->  | H69: =Inputs!$B$12*26.09*Assumptions!$B$9*M69/$G$7 -> 0 | M69: =IFERROR((G69)*(1+Assumptions!$B$3)^(K69-K$7),0) -> 0 | N69: =IFERROR(Inputs!$B$19*52.18*(1+Assumptions!$B$4)^(K69-K$7),0) -> 0 | O69: 0 | P69: =IFERROR((MIN(M69,O69)*Inputs!$B$16+MAX(0,M69-O69)*Inputs!$B$17)*Inputs!$B$6,0) -> 0 | Q69: =IFERROR((M69*Inputs!$B$18*Inputs!$B$6),0) -> 0 | R69: =IFERROR(R68*(1+Assumptions!$B$2)+P69,0) -> 54197.51668 | S69: =IFERROR(S68*(1+Assumptions!$B$2)+Q69,0) -> 270073.5675 | Y69: =MAX(IF(($L$4-K69)>=9,((1+Assumptions!$B$5)-1),((1+Assumptions!$B$5)-1)*($L$4-K69)/9+((1+Assumptions!$B$6)-1)*(1-($L$4-K69)/9)),0) -> 

Sheet Output
A1: Single Public Service Pension Scheme at Normal Retirement Age
A2: Output
B3: Current Day Value
A4: Scheme Pension | B4: =VLOOKUP(65,'Contributions & benefits at NRA'!$K$7:$AD$69,8,FALSE)*(1+Assumptions!$B$2)^('Contributions & benefits at NRA'!$K$7-'Contributions & benefits at NRA'!$L$3) -> 20838.8719 | C4: equivalent to | D4: =B4/(VLOOKUP(66,'Contributions & benefits at NRA'!$K$7:$AD$69,3,FALSE)*Inputs!$B$6*(1+Assumptions!$B$2)^('Contributions & benefits at NRA'!$K$7-66)) -> 0.2845246775 | E4: of retiring salary
A5: State Contributory Pension | B5: =Inputs!B19*52.18 -> 12956.294 | C5: equivalent to | D5: =B5/(VLOOKUP(66,'Contributions & benefits at NRA'!$K$7:$AD$69,3,FALSE)*Inputs!$B$6*(1+Assumptions!$B$2)^('Contributions & benefits at NRA'!$K$7-66)) -> 0.1768994689 | E5: of retiring salary
A6: Total Pension | B6: =B5+B4 -> 33795.1659 | C6: equivalent to | D6: =D5+D4 -> 0.4614241464 | E6: of retiring salary
A7: PLUS
A8: Scheme Lump Sum | B8: =VLOOKUP(65,'Contributions & benefits at NRA'!$K$7:$AD$69,9,FALSE)*(1+Assumptions!$B$2)^('Contributions & benefits at NRA'!$K$7-'Contributions & benefits at NRA'!$L$3) -> 104037.7654 | C8: equivalent to | D8: =B8/(VLOOKUP(66,'Contributions & benefits at NRA'!$K$7:$AD$69,3,FALSE)*Inputs!$B$6*(1+Assumptions!$B$2)^('Contributions & benefits at NRA'!$K$7-66)) -> 1.420485322 | E8: of retiring salary
A9: Excludes the Current Value of AVCs input
A11: Single Public Service Pension Scheme at Early Retirement Age 60
A12: Output
B13: Current Day Value
A14: SPSPS Pension | B14: =IFERROR(VLOOKUP(59,'Contributions & benefits at NRA'!$K$7:$AD$69,8,FALSE)*(1+Assumptions!$B$2)^('Contributions & benefits at NRA'!$K$7-60)*'Contributions & benefits at NRA'!$O$3,0) -> 14050.37402 | C14: equivalent to | D14: =IFERROR(B14/(VLOOKUP(60,'Contributions & benefits at NRA'!$K$7:$AD$69,3,FALSE)*Inputs!$B$6*(1+Assumptions!$B$2)^('Contributions & benefits at NRA'!$K$7-60)),0) -> 0.1918375502 | E14: of retiring salary
A15: PLUS
A16: SPSPS Lump Sum | B16: =IFERROR(VLOOKUP(59,'Contributions & benefits at NRA'!$K$7:$AD$69,9,FALSE)*(1+Assumptions!$B$2)^('Contributions & benefits at NRA'!$K$7-60)*'Contributions & benefits at NRA'!$P$3,0) -> 86046.03426 | C16: equivalent to | D16: =IFERROR(B16/(VLOOKUP(60,'Contributions & benefits at NRA'!$K$7:$AD$69,3,FALSE)*Inputs!$B$6*(1+Assumptions!$B$2)^('Contributions & benefits at NRA'!$K$7-60)),0) -> 1.174834236 | E16: of retiring salary
A17: Excludes the Current Value of AVCs input
A19: AVC Scheme
A20: Output
B21: Current Day Value
A22: Cumulative AVC fund at normal retirement age | B22: =(VLOOKUP(65,'Contributions & benefits at NRA'!$K$7:$AD$69,11,FALSE)+VLOOKUP(65,'Contributions & benefits at NRA'!$K$7:$AD$69,10,FALSE))*(1+Assumptions!$B$2)^('Contributions & benefits at NRA'!$K$7-'Contributions & benefits at NRA'!$L$3) -> 53094.61811
A23: Cumulative AVC fund at early retirement age | B23: =(VLOOKUP(59,'Contributions & benefits at NRA'!$K$7:$AD$69,11,FALSE)+VLOOKUP(59,'Contributions & benefits at NRA'!$K$7:$AD$69,10,FALSE))*(1+Assumptions!$B$2)^('Contributions & benefits at NRA'!$K$7-'Contributions & benefits at NRA'!$L$3) -> 43408.25137
A25: Purchase of Retirement Benefits Scheme
A26: Output
B27: Cost
A28: €1000 currently buys additional Pension of | B28: =1000/'Contributions & benefits at NRA'!AC7 -> 39.68253968
A29: €1000 currently buys additional Lump Sum of | B29: =1000/'Contributions & benefits at NRA'!AD7 -> 1086.956522
A31: Output Early
B32: Cost
A33: €1000 currently buys additional Pension of | B33: =1000/'Contributions & benefits at NRA'!AC7*Inputs!S3 -> 32.14285714
A34: €1000 currently buys additional Lump Sum of | B34: =1000/'Contributions & benefits at NRA'!AD7*Inputs!T3 -> 1065.217391

Sheet PDF
A5: Single Public Service Pension Scheme Estimator
A6: for Primary Teachers
A8: Your Projected Single Public Service Pension Scheme Retirement Benefits
A11: Based on the information you provided, we have estimated your projected benefits at retirement as
A12: follows. Please note all amounts are shown in current day values.
A15: Normal Retirement Age (if you retire at 66)
A17: Your retirement benefit | B17: Per year | C17: As a % of retiring salary
A18: Scheme Pension | B18: =TEXT(Output!B4,"€###,##0") -> €20,839 | C18: =TEXT(Output!D4,"0%") -> 28%
A20: State Contributory Pension | B20: =TEXT(Output!B5,"€###,##0") -> €12,956 | C20: =TEXT(Output!D5,"0%") -> 18%
A22: Total Pension | B22: =TEXT(Output!B6,"€###,##0") -> €33,795 | C22: =TEXT(Output!D6,"0%") -> 46%
B23: Plus
B24: Once off | C24: As a % of retiring salary
A25: Scheme Lump Sum (tax free) | B25: =TEXT(Output!B8,"€###,##0") -> €104,038 | C25: =TEXT(Output!D8,"0%") -> 142%
A29: Illustrations of added value if you decide to enhance your Single Public
A30: Service Pension Scheme:
A32: The INTO AVC Scheme
A34: ="Based on your current AVC value (if any) plus ongoing fortnightly contributions of "&TEXT(Inputs!B12,"€###,##0")&" increasing" -> Based on your current AVC value (if any) plus ongoing fortnightly contributions of €40 increasing
A35: in line with salary, we estimate an AVC value at retirement as below.
A38: Projected AVC value at retirement | B38: =TEXT(Output!B22,"€###,##0") -> €53,095
A41: The Purchase of Retirement Benefits Scheme
A43: If you make a €1,000 payment to the Department of Education to purchase additional retirement
A44: benefits, we estimate you will receive one of the following:
A46: Scheme Pension | B46: =TEXT(Output!B28,"€###,##0")&" (per year)" -> €40 (per year)
A47: or
A48: Scheme Lump Sum (tax free) | B48: =TEXT(Output!B29,"€###,##0")&" (once off)" -> €1,087 (once off)
A50: Early Retirement (if you retire at 60)
A52: It is important to be aware that retirement prior to State Pension age (currently 66) results in a
A53: reduced pension which takes account of the projected payment of pension over a longer period.
A56: Your retirement benefit | B56: Per year | C56: As a % of retiring salary
A57: Scheme Pension | B57: =IF(Output!B14=0,"N/A",TEXT(Output!B14,"€###,##0")) -> €14,050 | C57: =IF(Output!B14=0,"N/A",TEXT(Output!D14,"0%")) -> 19%
A59: State Contributory Pension | B59: From State Pension Age
A61: Total Pension | B61: =B57 -> €14,050 | C61: =C57 -> 19%
B62: Plus
B63: Once off | C63: As a % of retiring salary
A64: Scheme Lump Sum (tax free) | B64: =IF(Output!B14=0,"N/A",TEXT(Output!B16,"€###,##0")) -> €86,046 | C64: =IF(Output!B14=0,"N/A",TEXT(Output!D16,"0%")) -> 117%
A66: The INTO AVC Scheme
A68: ="Based on your current AVC value (if any) plus ongoing fortnightly contributions of "&TEXT(Inputs!B12,"€###,##0")&" increasing" -> Based on your current AVC value (if any) plus ongoing fortnightly contributions of €40 increasing
A69: in line with with salary, we estimate an AVC value at retirement as below.
A72: Projected AVC value at retirement | B72: =IF(ISNA(Output!B23),"N/A",TEXT(Output!B23,"€###,##0")) -> €43,408
A74: The Purchase of Retirement Benefits Scheme
A76: If you make a €1,000 payment to the Department of Education to purchase additional retirement
A77: benefits, we estimate you will receive one of the following:
A79: Scheme Pension | B79: =IF('Contributions & benefits at NRA'!K7>=60,"N/A",TEXT(Output!B33,"€###,##0")&" (per year)") -> €32 (per year)
A80: or
A81: Scheme Lump Sum (tax free) | B81: =IF('Contributions & benefits at NRA'!K7>=60,"N/A",TEXT(Output!B34,"€###,##0")&" (once off)") -> €1,065 (once off)
A83: Increasing Your Retirement Benefits
A85: You should consider how the pension shown above would impact on your lifestyle over the period of
A86: your retirement.
A88: It is possible to make additional contributions in order to increase your retirement benefits. The two
A89: most tax efficient ways to do so are:
A91: · The INTO AVC Scheme and/or
A92: · The Purchase of Retirement Benefits scheme
A94: The Schemes operate quite differently. Please note, tax relief at your marginal tax rate (40% for most
A95: teachers) is available on contributions to either scheme. So a €50 contribution would only cost you
A96: €30.
A98: The INTO AVC Scheme
A100: ="If you were to contribute "&TEXT(Inputs!B12,"€###,##0")&" per fortnight in the AVC Scheme until Normal Retirement Age, " -> If you were to contribute €40 per fortnight in the AVC Scheme until Normal Retirement Age,
A101: together with the current value of any AVCs you have already made, this is estimated to give you
A102: ="an AVC fund at normal retirement age of "&TEXT(Output!B22,"€###,##0")&" in current day terms." -> an AVC fund at normal retirement age of €53,095 in current day terms.
A104: On retirement you can decide (subject to revenue retirement rules) what you want to do with the
A105: AVC fund. You can maximise the tax free lump sum you are entitled to and, with any balance
A106: remaining, choose to invest it in a retirement fund, take it as taxable cash, or use it to purchase
A107: additional pension.
A109: ="A contribution of "&TEXT(Inputs!B12,"€###,##0")&" per fortnight is equivalent to "&TEXT(Inputs!B12*52.18/2/'Contributions & benefits at NRA'!G7/Inputs!B6,"0.0%")&" of your salary." -> A contribution of €40 per fortnight is equivalent to 2.0% of your salary.
A111: Contributions to the INTO AVC Scheme are generally made through salary so you receive any tax
A112: relief due immediately. It is also possible to make lump sum contributions into the INTO AVC
A113: Scheme.
A115: The above estimated benefits assume you invest in the default investment strategy. Trident
A116: Consulting have used industry guidance and current economic indicators to estimate future
A117: investment returns. Actual investment performance could be significantly different to the
A118: assumptions made and any such difference will impact the retirement benefits purchased by AVCs,
A119: as these will depend on your actual AVC value at retirement.
A121: If you would like to find out more about AVCs or have any queries, please contact Cornmarket on
A122: (01) 420 6794 or email customercontact@cornmarket.ie.
A124: The Purchase of Retirement Benefits Scheme
A126: You also have the option to purchase additional retirement benefits from the Purchase of
A127: Retirement Benefits scheme. This scheme gives you the option of purchasing additional pension
A128: and/or lump sum once a year, by a single payment to the Department of Education. The amount
A129: of benefit you purchase does not depend on future investment conditions but is a defined benefit.
A131: As an example:
A133: ="- Purchasing additional pension of "&TEXT(Output!B28,"€###,##0")& " p.a. would cost you €1,000 currently" -> - Purchasing additional pension of €40 p.a. would cost you €1,000 currently
A134: ="- Purchasing additional lump sum of "&TEXT(Output!B29,"€###,##0")& " would cost you €1,000 currently" -> - Purchasing additional lump sum of €1,087 would cost you €1,000 currently
A136: (At present a purchase may only be done by way of a single annual payment. It is hoped to
A137: secure a scheme of purchase based on regular contributions through salary deduction, but
A138: this is not yet in place.)
A140: Each year, the amount of benefits you can purchase from this scheme will vary depending on
A141: various factors. If you would like to purchase benefits from this scheme or have any queries,
A142: please visit the Department of Education website or email singlepensionscheme@education.gov.ie.
A144: Get expert financial advice!
A146: While INTO is not a financial advisor, the union can deal with questions about the operation of the
A147: pension scheme.
A149: It is important to get expert financial advice when planning for your future. Cornmarket are experts
A150: in public sector finances with almost 50 years’ experience helping teachers just like you. Cornmarket
A151: representatives, as qualified financial advisors (QFAs), can advise you on all of your retirement
A152: options, including the INTO AVC Scheme and the Purchase of Retirement Benefits Scheme.
A153: To speak to a Cornmarket expert, please call (01) 420 6974.
A154: Please visit the Department of Education website which includes a section on the Single Public
A155: Service Pension Scheme or email singlepensionscheme@education.gov.ie for more information.
A157: Assumptions
A158: The estimated benefits set out in this document are dependent on the accuracy of the information
A159: you have provided as well as the assumptions used.
A160: The estimates are personal to you and you alone. They would not give an accurate estimate of
A161: another teacher's benefits as that teacher will not have been born on the same day as you, started
A162: teaching at the same time as you, etc.
A164: The main assumptions used in this estimator are:
A166: · Salaries to increase by 1.5% each year more than existing salary scales.
A167: · Contributory State Pension is assumed to increase by 1.5% each year.
A168: · You are assumed to have earned full entitlement to the Contributory State Pension
A169: by normal retirement age and this is reflected in the illustration of retirement
A170: benefits at normal retirement age above.
A171: · Your current work pattern is assumed to continue in future.
A172: · Historic etitlements to the scheme have been estimated based on your historic service
A173: in the scheme. This is a broad approximation only. Accurate entitlements will be
A174: detailed in your Single Public Service Pension Scheme benefit statement, when available.
A175: · Amounts are all expressed in current day terms – so have been reduced by 1.5% each year.
A176: · Investment assumptions reflect guidance from the Society of Actuaries in Ireland,
A177: ASP PEN-12.
A178: · The AVC contribution will increase in line with salary.
A179: · The scheme lump sum is generally a tax free amount, however there are limits set by
A180: Revenue in relation to how much of a tax free lump sum each individual is entitled to.
A181: For most teachers this limit is 150% of final salary but could be less if a teacher has less
A182: than 20 years' service. Revenue will also tax any amount of retirement lump sums which
A183: are greater than €200,000 (combination of all retirement lump sums received since 7th
A184: December 2005).
A186: Disclaimer
A187: This document is an estimate of your future retirement benefits under the Single Public Service
A188: Pension Scheme based on the information you have inputted. The benefits illustrated are not
A189: guaranteed. Your actual retirement benefits will depend on the rules of the Single Public Service
A190: Pension Scheme as they apply to you on retirement.
A192: This document does not constitute financial advice.
A194: The data you have inputted for this illustration is not stored by INTO or Cornmarket or used for any
A195: other purpose.

Sheet Accrued benefits
A1: Data taken from spreadsheet: | B1: Comparison of Earnings 2021 Pay Deal rak
A2: 1/3 portion applied to full year
A3: DOB | B3: =Inputs!$B$3 -> 1992-05-06 | J3: Link
A4: Starting position | B4: Point on scale | C4: Total Pensionable Salary | D4: Age | E4: State pension | G4: 3.74* State pension | H4: Annual pension accrual | I4: Annual lump sum accrual | J4: Uprating in the 12 months to end of year | K4: Cumulative pension | L4: Cumulative lump sum | N4: Year of Joining | O4: Cumulative pension | P4: Cumulative lump sum | Q4: RAK Figs | R4: Join Date | S4: Accrued Pension to 31/12/2020 | T4: Accrued Lump Sum to 31/12/2020 | U4: Compare
A5: 2013-09-01 | K5: 0 | L5: 0 | N5: 2013 | O5: =K13 -> 1642.734475 | P5: =L13 -> 10602.53071 | R5: New entrant starting 1/9/2013 | S5: 1647.542699 | T5: 10652.21572 | U5: =S5/O5 -> 1.002926963 | V5: =T5/P5 -> 1.004686147
A6: 1/9/13 to 31/8/14 | B6: 1 | C6: 30702 | D6: =28 -> 28 | E6: 230.3 | F6: =E6*52.18 -> 12017.054 | G6: =F6*3.74 -> 44943.78196 | H6: =MIN(C6,G6)*Inputs!$B$16+MAX(0,C6-G6)*Inputs!$B$17 -> 178.0716 | I6: =C6*Inputs!$B$18 -> 1151.325 | J6: 0 | K6: =K5+H6*(D7-D6) -> 178.0716 | L6: =L5+I6*(D7-D6) -> 1151.325 | N6: 2014 | O6: =K23 -> 1403.193742 | P6: =L23 -> 9072.373335 | R6: New entrant starting 1/9/2014 | S6: 1403.175628 | T6: 9072.256215 | U6: =S6/O6 -> 0.9999870905 | V6: 0.9999870905
A7: 1/9/14 to 31/8/15 | B7: 2 | C7: 33168 | D7: =ROUND(D6+1,0) -> 29 | E7: 230.3 | F7: =E7*52.18 -> 12017.054 | G7: =F7*3.74 -> 44943.78196 | H7: =MIN(C7,G7)*Inputs!$B$16+MAX(0,C7-G7)*Inputs!$B$17 -> 192.3744 | I7: =C7*Inputs!$B$18 -> 1243.8 | J7: 0.001 | K7: =K6*(4/12*(1+J6)+8/12*(1+J7))+H7 -> 370.5647144 | L7: =L6*(4/12*(1+J6)+8/12*(1+J7))+I7 -> 2395.89255 | N7: 2015 | O7: =K33 -> 1183.830049 | P7: =L33 -> 7654.073595 | R7: New entrant starting 1/9/2015 | S7: 1184.275423 | T7: 7656.953165 | U7: 1.000376214 | V7: 1.000376214
A8: 1/9/15 to 31/8/16 | B8: 2,3 | C8: 33754.5 | D8: =ROUND(D7+1,0) -> 30 | E8: 230.3 | F8: 12017.054 | G8: 44943.78196 | H8: =MIN(C8,G8)*Inputs!$B$16+MAX(0,C8-G8)*Inputs!$B$17 -> 195.7761 | I8: =C8*Inputs!$B$18 -> 1265.79375 | J8: 0 | K8: =K7*(4/12*(1+J7)+8/12*(1+J8))+H8 -> 566.464336 | L8: =L7*(4/12*(1+J7)+8/12*(1+J8))+I8 -> 3662.484931 | N8: 2016 | O8: =K42 -> 966.3835344 | P8: =L42 -> 6248.169403 | R8: New entrant starting 1/9/2016 | S8: 966.3755775 | T8: 6248.117958 | U8: 0.9999917664 | V8: 0.9999917664
A9: 1/9/16 to 31/8/17 | B9: 3,4 | C9: 36736 | D9: 31 | E9: 233.3 | F9: 12173.594 | G9: 45529.24156 | H9: =MIN(C9,G9)*Inputs!$B$16+MAX(0,C9-G9)*Inputs!$B$17 -> 213.0688 | I9: =C9*Inputs!$B$18 -> 1377.6 | J9: 0.004 | K9: 781.0437075 | L9: 5049.851557 | N9: 2017 | O9: =K50 -> 745.1166646 | P9: =L50 -> 4817.564642 | R9: New entrant starting 1/9/2017 | S9: 745.1130951 | T9: 4817.541563 | U9: 0.9999952094 | V9: 0.9999952094
A10: 1/9/17 to 31/8/18 | B10: 4,5 | C10: 40232.725 | D10: 32 | E10: 238.3 | F10: 12434.494 | G10: 46505.00756 | H10: =MIN(C10,G10)*Inputs!$B$16+MAX(0,C10-G10)*Inputs!$B$17 -> 233.349805 | I10: =C10*Inputs!$B$18 -> 1508.727187 | J10: 0.007 | K10: 1019.079775 | L10: 6588.877854 | N10: 2018 | O10: =K57 -> 513.6094435 | P10: =L57 -> 3320.750712 | R10: New entrant starting 1/9/2018 | S10: 513.6094435 | T10: 3320.750712 | U10: 1 | V10: 1
A11: 1/9/18 to 31/8/19 | B11: 5,6 | C11: 41990.92927 | D11: 33 | E11: 243.3 | F11: 12695.394 | G11: 47480.77356 | H11: =MIN(C11,G11)*Inputs!$B$16+MAX(0,C11-G11)*Inputs!$B$17 -> 243.5473898 | I11: =C11*Inputs!$B$18 -> 1574.659848 | J11: 0.013 | K11: 1273.837042 | L11: 8236.015358 | N11: 2019 | O11: =K63 -> 290.0586685 | P11: =L63 -> 1875.379322 | R11: New entrant starting 1/9/2019 | S11: 290.0586685 | T11: 1875.379322 | U11: 1 | V11: 1
A12: 1/9/19 to 31/8/20 | B12: 6,9 | C12: 45573.86646 | D12: 34 | E12: 248.3 | F12: 12956.294 | G12: 48456.53956 | H12: =MIN(C12,G12)*Inputs!$B$16+MAX(0,C12-G12)*Inputs!$B$17 -> 264.3284255 | I12: =C12*Inputs!$B$18 -> 1709.019992 | J12: 0 | K12: =K11*(4/12*(1+J11)+8/12*(1+J12))+H12 -> 1543.685428 | L12: 9980.724751 | N12: 2020 | O12: =K68 -> 72.90155281 | P12: =L68 -> 471.3462466 | R12: New entrant starting 1/9/2020 | S12: 72.75216438 | T12: 470.3803731 | U12: 0.9979508197 | V12: 0.9979508197
A13: 1/9/20 to 31/12/2020 | B13: 9,10 | C13: =1/3*49744.4764875834 -> 16581.49216 | D13: 35 | E13: 248.3 | F13: =E13*52.18*1/3 -> 4318.764667 | G13: =F13*3.74 -> 16152.17985 | H13: =MIN(C13,G13)*Inputs!$B$16+MAX(0,C13-G13)*Inputs!$B$17 -> 99.04904701 | I13: =C13*Inputs!$B$18 -> 621.8059561 | K13: =K12*(1+J12)+H13 -> 1642.734475 | L13: =L12*(1+J12)+I13 -> 10602.53071
A15: Starting position 01/09/2014 | B15: Point on scale | C15: Total Pensionable Salary | D15: Age | E15: State pension | G15: 3.74* State pension | H15: Annual pension accrual | I15: Annual lump sum accrual | J15: Uprating in the 12 months to end of year | K15: Cumulative pension | L15: Cumulative lump sum | N15: RAK Queries:
A16: 2014-09-01 | K16: 0 | L16: 0 | N16: How best to apply historic CIP uprating? Proportionally or otherwise
A17: 1/9/14 to 31/8/15 | B17: 1 | C17: 30702 | D17: 29 | E17: 230.3 | F17: =E17*52.18 -> 12017.054 | G17: =F17*3.74 -> 44943.78196 | H17: =MIN(C17,G17)*Inputs!$B$16+MAX(0,C17-G17)*Inputs!$B$17 -> 178.0716 | I17: =C17*Inputs!$B$18 -> 1151.325 | J17: 0.001 | K17: =K16+H17*(D18-D17) -> 178.0716 | L17: =L16+I17*(D18-D17) -> 1151.325 | N17: Part-Time % application
A18: 1/9/15 to 31/8/16 | B18: 2 | C18: 33168 | D18: =ROUND(D17+1,0) -> 30 | E18: 230.3 | F18: =E18*52.18 -> 12017.054 | G18: =F18*3.74 -> 44943.78196 | H18: =MIN(C18,G18)*Inputs!$B$16+MAX(0,C18-G18)*Inputs!$B$17 -> 192.3744 | I18: =C18*Inputs!$B$18 -> 1243.8 | J18: 0 | K18: =K17*(4/12*(1+J17)+8/12*(1+J18))+H18 -> 370.5053572 | L18: =L17*(4/12*(1+J17)+8/12*(1+J18))+I18 -> 2395.508775
A19: 1/9/16 to 31/8/17 | B19: 2,3 | C19: 35694.5 | D19: =ROUND(D18+1,0) -> 31 | E19: 230.3 | F19: 12017.054 | G19: 44943.78196 | H19: =MIN(C19,G19)*Inputs!$B$16+MAX(0,C19-G19)*Inputs!$B$17 -> 207.0281 | I19: =C19*Inputs!$B$18 -> 1338.54375 | J19: 0.004 | K19: =K18*(4/12*(1+J18)+8/12*(1+J19))+H19 -> 578.5214715 | L19: =L18*(4/12*(1+J18)+8/12*(1+J19))+I19 -> 3740.440548
A20: 1/9/17 to 31/8/18 | B20: 3,4 | C20: 39269.88 | D20: 32 | E20: 233.3 | F20: 12173.594 | G20: 45529.24156 | H20: =MIN(C20,G20)*Inputs!$B$16+MAX(0,C20-G20)*Inputs!$B$17 -> 227.765304 | I20: =C20*Inputs!$B$18 -> 1472.6205 | J20: 0.007 | K20: 809.7579043 | L20: 5235.503692
A21: 1/9/18 to 31/8/19 | B21: 4,5 | C21: 41060.22269 | D21: 33 | E21: 238.3 | F21: 12434.494 | G21: 46505.00756 | H21: =MIN(C21,G21)*Inputs!$B$16+MAX(0,C21-G21)*Inputs!$B$17 -> 238.1492916 | I21: =C21*Inputs!$B$18 -> 1539.758351 | J21: 0.013 | K21: 1056.814533 | L21: 6832.852583
A22: 1/9/19 to 31/8/20 | B22: 5,6 | C22: 43095.75666 | D22: 34 | E22: 243.3 | F22: 12695.394 | G22: 47480.77356 | H22: =MIN(C22,G22)*Inputs!$B$16+MAX(0,C22-G22)*Inputs!$B$17 -> 249.9553886 | I22: =C22*Inputs!$B$18 -> 1616.090875 | J22: 0 | K22: 1311.349451 | L22: 8478.552486
A23: 1/9/20 to 31/12/2020 | B23: 6,9 | C23: =1/3*47505.6679229375 -> 15835.22264 | D23: 35 | E23: 248.3 | F23: =1/3*E23*52.18 -> 4318.764667 | G23: 16152.17985 | H23: =MIN(C23,G23)*Inputs!$B$16+MAX(0,C23-G23)*Inputs!$B$17 -> 91.84429132 | I23: =C23*Inputs!$B$18 -> 593.820849 | K23: =K22*(1+J22)+H23 -> 1403.193742 | L23: =L22*(1+J22)+I23 -> 9072.373335
A26: Starting position 01/09/2015 | B26: Point on scale | C26: Total Pensionable Salary | D26: Age | E26: State pension | G26: 3.74* State pension | H26: Annual pension accrual | I26: Annual lump sum accrual | J26: Uprating in the 12 months to end of year | K26: Cumulative pension | L26: Cumulative lump sum
A27: 2015-09-01 | K27: 0 | L27: 0
A28: 1/9/15 to 31/8/16 | B28: 1 | C28: 30906.68 | D28: 30 | E28: 230.3 | F28: =E28*52.18 -> 12017.054 | G28: =F28*3.74 -> 44943.78196 | H28: =MIN(C28,G28)*Inputs!$B$16+MAX(0,C28-G28)*Inputs!$B$17 -> 179.258744 | I28: =C28*Inputs!$B$18 -> 1159.0005 | J28: 0 | K28: =K27+H28*(D29-D28) -> 179.258744 | L28: =L27+I28*(D29-D28) -> 1159.0005
A29: 1/9/16 to 31/8/17 | B29: 2 | C29: 34814 | D29: =ROUND(D28+1,0) -> 31 | E29: 230.3 | F29: =E29*52.18 -> 12017.054 | G29: =F29*3.74 -> 44943.78196 | H29: =MIN(C29,G29)*Inputs!$B$16+MAX(0,C29-G29)*Inputs!$B$17 -> 201.9212 | I29: =C29*Inputs!$B$18 -> 1305.525 | J29: 0.004 | K29: =K28*(4/12*(1+J28)+8/12*(1+J29))+H29 -> 381.6579673 | L29: =L28*(4/12*(1+J28)+8/12*(1+J29))+I29 -> 2467.616168
A30: 1/9/17 to 31/8/18 | B30: 3 | C30: 38617.82 | D30: =ROUND(D29+1,0) -> 32 | E30: 230.3 | F30: 12017.054 | G30: 44943.78196 | H30: =MIN(C30,G30)*Inputs!$B$16+MAX(0,C30-G30)*Inputs!$B$17 -> 223.983356 | I30: =C30*Inputs!$B$18 -> 1448.16825 | J30: 0.007 | K30: =K29*(4/12*(1+J29)+8/12*(1+J30))+H30 -> 607.9312711 | L30: =L29*(4/12*(1+J29)+8/12*(1+J30))+I30 -> 3930.590115
A31: 1/9/18 to 31/8/19 | B31: 4 | C31: 40242.35752 | D31: 33 | E31: 233.3 | F31: 12173.594 | G31: 45529.24156 | H31: =MIN(C31,G31)*Inputs!$B$16+MAX(0,C31-G31)*Inputs!$B$17 -> 233.4056736 | I31: =C31*Inputs!$B$18 -> 1509.088407 | J31: 0.013 | K31: 848.0241887 | L31: 5482.915013
A32: 1/9/19 to 31/8/20 | B32: 5 | C32: 42089.98141 | D32: 34 | E32: 238.3 | F32: 12434.494 | G32: 46505.00756 | H32: =MIN(C32,G32)*Inputs!$B$16+MAX(0,C32-G32)*Inputs!$B$17 -> 244.1218922 | I32: =C32*Inputs!$B$18 -> 1578.374303 | J32: 0 | K32: 1095.820852 | L32: 7085.048615
A33: 1/9/20 to 31/12/2020 | B33: 7 | C33: =1/3*45521.9984511875 -> 15173.99948 | D33: 35 | E33: 243.3 | F33: =1/3*E33*52.18 -> 4231.798 | G33: 15826.92452 | H33: =MIN(C33,G33)*Inputs!$B$16+MAX(0,C33-G33)*Inputs!$B$17 -> 88.00919701 | I33: =C33*Inputs!$B$18 -> 569.0249806 | K33: =K32*(1+J32)+H33 -> 1183.830049 | L33: =L32*(1+J32)+I33 -> 7654.073595
A36: Starting position 01/09/2016 | B36: Point on scale | C36: Total Pensionable Salary | D36: Age | E36: State pension | G36: 3.74* State pension | H36: Annual pension accrual | I36: Annual lump sum accrual | J36: Uprating in the 12 months to end of year | K36: Cumulative pension | L36: Cumulative lump sum
A37: 2016-09-01 | K37: 0 | L37: 0
A38: 1/9/16 to 31/8/17 | B38: 1 | C38: 32889.00667 | D38: 31 | E38: 230.3 | F38: =E38*52.18 -> 12017.054 | G38: =F38*3.74 -> 44943.78196 | H38: =MIN(C38,G38)*Inputs!$B$16+MAX(0,C38-G38)*Inputs!$B$17 -> 190.7562387 | I38: =C38*Inputs!$B$18 -> 1233.33775 | J38: 0.004 | K38: =K37+H38*(D39-D38) -> 190.7562387 | L38: =L37+I38*(D39-D38) -> 1233.33775
A39: 1/9/17 to 31/8/18 | B39: 2 | C39: 37089.72667 | D39: =ROUND(D38+1,0) -> 32 | E39: 230.3 | F39: =E39*52.18 -> 12017.054 | G39: =F39*3.74 -> 44943.78196 | H39: =MIN(C39,G39)*Inputs!$B$16+MAX(0,C39-G39)*Inputs!$B$17 -> 215.1204147 | I39: =C39*Inputs!$B$18 -> 1390.86475 | J39: 0.007 | K39: =K38*(4/12*(1+J38)+8/12*(1+J39))+H39 -> 407.0211908 | L39: =L38*(4/12*(1+J38)+8/12*(1+J39))+I39 -> 2631.602526
A40: 1/9/18 to 31/8/19 | B40: 3 | C40: 39468.74044 | D40: =ROUND(D39+1,0) -> 33 | E40: 230.3 | F40: 12017.054 | G40: 44943.78196 | H40: =MIN(C40,G40)*Inputs!$B$16+MAX(0,C40-G40)*Inputs!$B$17 -> 228.9186946 | I40: =C40*Inputs!$B$18 -> 1480.077767 | J40: 0.013 | K40: =K39*(4/12*(1+J39)+8/12*(1+J40))+H40 -> 640.4171184 | L40: =L39*(4/12*(1+J39)+8/12*(1+J40))+I40 -> 4140.627921
A41: 1/9/19 to 31/8/20 | B41: 4 | C41: 40980.41099 | D41: 34 | E41: 233.3 | F41: 12173.594 | G41: 45529.24156 | H41: =MIN(C41,G41)*Inputs!$B$16+MAX(0,C41-G41)*Inputs!$B$17 -> 237.6863838 | I41: =C41*Inputs!$B$18 -> 1536.765412 | J41: 0 | K41: 880.878643 | L41: 5695.336054
A42: 1/9/20 to 31/12/2020 | B42: 6 | C42: =1/3*44226.6679229375 -> 14742.22264 | D42: 35 | E42: 238.3 | F42: =1/3*E42*52.18 -> 4144.831333 | G42: 15501.66919 | H42: =MIN(C42,G42)*Inputs!$B$16+MAX(0,C42-G42)*Inputs!$B$17 -> 85.50489132 | I42: =C42*Inputs!$B$18 -> 552.833349 | K42: =K41*(1+J41)+H42 -> 966.3835344 | L42: =L41*(1+J41)+I42 -> 6248.169403
A45: Starting position 01/09/2017 | B45: Point on scale | C45: Total Pensionable Salary | D45: Age | E45: State pension | G45: 3.74* State pension | H45: Annual pension accrual | I45: Annual lump sum accrual | J45: Uprating in the 12 months to end of year | K45: Cumulative pension | L45: Cumulative lump sum
A46: 2017-09-01 | K46: 0 | L46: 0
A47: 1/9/17 to 31/8/18 | B47: 1 | C47: 35506.01333 | D47: 32 | E47: 230.3 | F47: =E47*52.18 -> 12017.054 | G47: =F47*3.74 -> 44943.78196 | H47: =MIN(C47,G47)*Inputs!$B$16+MAX(0,C47-G47)*Inputs!$B$17 -> 205.9348773 | I47: =C47*Inputs!$B$18 -> 1331.4755 | J47: 0.007 | K47: =K46+H47*(D48-D47) -> 205.9348773 | L47: =L46+I47*(D48-D47) -> 1331.4755
A48: 1/9/18 to 31/8/19 | B48: 2 | C48: 37772.69458 | D48: =ROUND(D47+1,0) -> 33 | E48: 230.3 | F48: =E48*52.18 -> 12017.054 | G48: =F48*3.74 -> 44943.78196 | H48: =MIN(C48,G48)*Inputs!$B$16+MAX(0,C48-G48)*Inputs!$B$17 -> 219.0816285 | I48: =C48*Inputs!$B$18 -> 1416.476047 | J48: 0.013 | K48: =K47*(4/12*(1+J47)+8/12*(1+J48))+H48 -> 427.2817895 | L48: =L47*(4/12*(1+J47)+8/12*(1+J48))+I48 -> 2762.597777
A49: 1/9/19 to 31/8/20 | B49: 3 | C49: 40192.60562 | D49: =ROUND(D48+1,0) -> 34 | E49: 230.3 | F49: 12017.054 | G49: 44943.78196 | H49: =MIN(C49,G49)*Inputs!$B$16+MAX(0,C49-G49)*Inputs!$B$17 -> 233.1171126 | I49: =C49*Inputs!$B$18 -> 1507.222711 | J49: 0 | K49: =K48*(4/12*(1+J48)+8/12*(1+J49))+H49 -> 662.2504565 | L49: =L48*(4/12*(1+J48)+8/12*(1+J49))+I49 -> 4281.791745
A50: 1/9/20 to 31/12/2020 | B50: 5 | C50: =1/3*42861.8317845208 -> 14287.27726 | D50: 35 | E50: 233.3 | F50: =1/3*E50*52.18 -> 4057.864667 | G50: 15176.41385 | H50: =MIN(C50,G50)*Inputs!$B$16+MAX(0,C50-G50)*Inputs!$B$17 -> 82.86620812 | I50: =C50*Inputs!$B$18 -> 535.7728973 | K50: =K49*(1+J49)+H50 -> 745.1166646 | L50: =L49*(1+J49)+I50 -> 4817.564642
A53: Starting position 01/09/2013 | B53: Point on scale | C53: Total Pensionable Salary | D53: Age | E53: State pension | G53: 3.74* State pension | H53: Annual pension accrual | I53: Annual lump sum accrual | J53: Uprating in the 12 months to end of year | K53: Cumulative pension | L53: Cumulative lump sum
A54: 2018-09-01 | K54: 0 | L54: 0
A55: 1/9/18 to 31/8/19 | B55: 1 | C55: 36287.63518 | D55: 33 | E55: 230.3 | F55: =E55*52.18 -> 12017.054 | G55: =F55*3.74 -> 44943.78196 | H55: =MIN(C55,G55)*Inputs!$B$16+MAX(0,C55-G55)*Inputs!$B$17 -> 210.4682841 | I55: =C55*Inputs!$B$18 -> 1360.786319 | J55: 0.013 | K55: =K54+H55*(D56-D55) -> 210.4682841 | L55: =L54+I55*(D56-D55) -> 1360.786319
A56: 1/9/19 to 31/8/20 | B56: 2 | C56: 38465.4539 | D56: =ROUND(D55+1,0) -> 34 | E56: 230.3 | F56: =E56*52.18 -> 12017.054 | G56: =F56*3.74 -> 44943.78196 | H56: =MIN(C56,G56)*Inputs!$B$16+MAX(0,C56-G56)*Inputs!$B$17 -> 223.0996326 | I56: =C56*Inputs!$B$18 -> 1442.454521 | J56: 0 | K56: =K55*(4/12*(1+J55)+8/12*(1+J56))+H56 -> 434.4799459 | L56: =L55*(4/12*(1+J55)+8/12*(1+J56))+I56 -> 2809.137581
A57: 1/9/20 to 31/12/2020 | B57: 3 | C57: =1/3*40929.0504679375 -> 13643.01682 | D57: =ROUND(D56+1,0) -> 35 | E57: 230.3 | F57: =1/3*E57*52.18 -> 4005.684667 | G57: 14981.26065 | H57: =MIN(C57,G57)*Inputs!$B$16+MAX(0,C57-G57)*Inputs!$B$17 -> 79.12949757 | I57: =C57*Inputs!$B$18 -> 511.6131308 | K57: =K56*(1+J56)+H57 -> 513.6094435 | L57: =L56*(1+J56)+I57 -> 3320.750712
A60: Starting position 01/09/2018 | B60: Point on scale | C60: Total Pensionable Salary | D60: Age | E60: State pension | G60: 3.74* State pension | H60: Annual pension accrual | I60: Annual lump sum accrual | J60: Uprating in the 12 months to end of year | K60: Cumulative pension | L60: Cumulative lump sum
A61: 2019-09-01 | K61: 0 | L61: 0
A62: 1/9/19 to 31/8/20 | B62: 1 | C62: 36953.1582 | D62: 34 | E62: 230.3 | F62: =E62*52.18 -> 12017.054 | G62: =F62*3.74 -> 44943.78196 | H62: =MIN(C62,G62)*Inputs!$B$16+MAX(0,C62-G62)*Inputs!$B$17 -> 214.3283176 | I62: =C62*Inputs!$B$18 -> 1385.743433 | J62: 0 | K62: =K61+H62*(D63-D62) -> 214.3283176 | L62: =L61+I62*(D63-D62) -> 1385.743433
A63: 1/9/20 to 31/12/2020 | B63: 2 | C63: =1/3*39170.8711586042 -> 13056.95705 | D63: =ROUND(D62+1,0) -> 35 | E63: 230.3 | F63: =1/3*E63*52.18 -> 4005.684667 | G63: =F63*3.74 -> 14981.26065 | H63: =MIN(C63,G63)*Inputs!$B$16+MAX(0,C63-G63)*Inputs!$B$17 -> 75.73035091 | I63: =C63*Inputs!$B$18 -> 489.6358895 | K63: =K62*(1+J62)+H63 -> 290.0586685 | L63: =L62*(1+J62)+I63 -> 1875.379322
A66: Starting position 01/09/2019 | B66: Point on scale | C66: Total Pensionable Salary | D66: Age | E66: State pension | G66: 3.74* State pension | H66: Annual pension accrual | I66: Annual lump sum accrual | J66: Uprating in the 12 months to end of year | K66: Cumulative pension | L66: Cumulative lump sum
A67: 2020-09-01 | K67: 0 | L67: 0
A68: 1/9/20 to 31/12/2020 | B68: 1 | C68: =37630.4298502917 -> 37630.42985 | D68: =(A67-Inputs!$B$3)/365.25 -> 28.32306639 | E68: 230.3 | F68: =E68*52.18 -> 12017.054 | G68: =F68*3.74 -> 44943.78196 | H68: =MIN(C68,G68)*Inputs!$B$16+MAX(0,C68-G68)*Inputs!$B$17 -> 218.2564931 | I68: =C68*Inputs!$B$18 -> 1411.141119 | K68: =K67+H68*(D69-D68) -> 72.90155281 | L68: =L67+I68*(D69-D68) -> 471.3462466
D69: =(DATE(2021,1,1)-Inputs!$B$3)/365.25 -> 28.65708419
